{"text_format":"1","workbook":"xlsx","n_sheets":6,"sheets":["Meny","Planering","Data","Avgiftsnivåer","Taxebilaga 1","Admin"],"not_rendered":{"charts":0,"images":4,"macros":1,"external_links":0,"defined_names":13,"comments":0,"pivot_tables":0},"unopened":[],"bounds":{"document_bytes":16777216,"sheet_cells":100000,"rows_first":2000,"rows_last":500,"rows_between":2000,"halvings":0,"cell_chars":16384,"cell_head_chars":4096},"cells_cut":0,"cells_raw":0,"read":"whole","date_system":"1900"}

{"sheet":"Meny","index":0,"n_rows":20,"n_cols":15,"rows_kept":20,"cut":false,"hidden":false,"merged":[[28,4,28,11],[12,4,12,11],[23,4,23,11],[24,4,24,11],[25,4,25,11],[26,4,26,11],[27,4,27,11],[18,4,18,11],[19,4,19,11],[20,4,20,11],[21,4,21,11],[22,4,22,11],[16,4,16,11],[14,4,14,11],[15,4,15,11],[17,4,17,11],[9,4,9,11],[7,4,7,11],[8,4,8,11],[10,4,10,11],[11,4,11,11]]}
[]
[]
[null,null,null,"Taxebilaga 1 samt Avgiftsnivåer",null,null,null,null,null,null,null,null,null,null,"Filtrering:"]
[null,null,null,"ver.5.0",null,null,null,null,null,null,null,null,null,null,"Du kan ändra filtreringen för att ändra vad som visas. I exemplet till höger så selekterar vi enbart de rader som har timavgift och därmed ska vara i bilaga 3"]
[null,null,null,null,null,null,null,null,null,null,null,null,null,null,"För att återställa filtrertingen, tryck \"Rensa filter i…\". De kolumner som har en filtrering har en liten tratt bredvid nerpilen"]
[]
[]
[null,null,null,1,"Se till att aktivera redigering samt godkänna användningen av makron (se bilder ovan)"]
[null,null,null,null,"Om makron fortfarande inte är aktiverade kan du behöva ändra makroinställningarna. "]
[null,null,null,null,"Enklast är att klicka på följande länk och följa instruktioner för din Office version:"]
[null,null,null,null,"Aktivera eller inaktivera makron i Office-filer"]
[null,null,null,2,"Gå in på flik Planering"]
[null,null,null,"3.","Ange timavgift"]
[null,null,null,4,"Fyll i avgiftsnivåer nedan"]
[null,null,null,null,"För att skapa fler avgiftsnivåer, ta tag i det nedre högra hörnet för att skapa nya rader"]
[null,null,null,6,"Gå in på flik Data"]
[null,null,null,7,"Gå igenom kolumn C och ange vilken typ av avgift som ska appliceras"]
[null,null,null,8,"Beroende på valet i kolumn C, välj avgiftsnivå, fyll i timavgift eller fyll i fast avgift"]
[null,null,null,9,"Tryck \"Uppdatera Taxebilagor"]
[null,null,null,null,"Nya bilagor skapas i separata flikar."]

{"sheet":"Planering","index":1,"n_rows":17,"n_cols":6,"rows_kept":17,"cut":false,"hidden":false,"merged":[]}
[]
[]
[]
[]
[null,null,null,"Planering"]
[]
[null,null,null,"Timavgift:"]
[null,null,null,1000]
[]
[]
[]
[null,null,null,"Avgiftsnivå","Timmar","Exempel"]
[null,null,null,"Välj avgiftsnivå"]
[null,null,null,"Avgiftsnivå 1",2,2]
[null,null,null,"Avgiftsnivå 2",3,4]
[null,null,null,"Avgiftsnivå 3",4,8]
[null,null,null,"Avgiftsnivå 4","timavgift","timavgift"]

{"sheet":"Data","index":2,"n_rows":145,"n_cols":6,"rows_kept":145,"cut":false,"hidden":false,"merged":[]}
["Huvudrubrikerna (miljöbalkskapitlen) har så långt möjligt samma ordningsföljd och lydelse som rubrikerna i förordning (1998:948) om avgifter för prövning och tillsyn enligt miljöbalken (FAPT)."]
["Beskrivning","Lagrum","Typ av avgift","Avgiftsnivå","Fast belopp/avgift","Avgift"]
["AVGIFTER FÖR MILJÖFARLIG VERKSAMHET OCH HÄLSOSKYDD"]
["Prövning av ansökan"]
["Ansökan om tillstånd till inrättande av en avloppsanordning som en eller flera vattentoaletter ska anslutas till, och som inte omfattas av fast avgift enligt taxebilaga 2.","13 § förordningen (1998:899) om miljöfarlig verksamhet och hälsoskydd","Välj avgiftstyp","Välj avgiftsnivå",null,{"$f":"IF(TableData[[#This Row],[Typ av avgift]]=\"Avgiftsnivå\",TableData[[#This Row],[Avgiftsnivå]],IF(TableData[[#This Row],[Typ av avgift]]=\"Timavgift\",\"Timavgift\",IF(TableData[[#This Row],[Typ av avgift]]=\"Fast belopp\",TableData[[#This Row],[Fast belopp/avgift]]&\" kr\",IF(TableData[[#This Row],[Typ av avgift]]=\"Fast avgift\",TableData[[#This Row],[Fast belopp/avgift]]&\" tim\",\"\"))))","v":""}]
["Ansökan om tillstånd till anslutande av en vattentoalett till en befintlig avloppsanordning, och som inte omfattas av fast avgift enligt taxebilaga 2.","13 § förordningen (1998:899) om miljöfarlig verksamhet och hälsoskydd","Välj avgiftstyp","Välj avgiftsnivå",null,{"$f":"IF(TableData[[#This Row],[Typ av avgift]]=\"Avgiftsnivå\",TableData[[#This Row],[Avgiftsnivå]],IF(TableData[[#This Row],[Typ av avgift]]=\"Timavgift\",\"Timavgift\",IF(TableData[[#This Row],[Typ av avgift]]=\"Fast belopp\",TableData[[#This Row],[Fast belopp/avgift]]&\" kr\",IF(TableData[[#This Row],[Typ av avgift]]=\"Fast avgift\",TableData[[#This Row],[Fast belopp/avgift]]&\" tim\",\"\"))))","v":""}]
["Ansökan om tillstånd till inrättande av annan avloppsanordning än med vattentoalett enligt vad kommunen har föreskrivit för att skydda människors hälsa eller miljön, och som inte omfattas av fast avgift enligt taxebilaga 2.","13 § förordningen (1998:899) om miljöfarlig verksamhet och hälsoskydd","Välj avgiftstyp","Välj avgiftsnivå",null,{"$f":"IF(TableData[[#This Row],[Typ av avgift]]=\"Avgiftsnivå\",TableData[[#This Row],[Avgiftsnivå]],IF(TableData[[#This Row],[Typ av avgift]]=\"Timavgift\",\"Timavgift\",IF(TableData[[#This Row],[Typ av avgift]]=\"Fast belopp\",TableData[[#This Row],[Fast belopp/avgift]]&\" kr\",IF(TableData[[#This Row],[Typ av avgift]]=\"Fast avgift\",TableData[[#This Row],[Fast belopp/avgift]]&\" tim\",\"\"))))","v":""}]
["Ansökan om tillstånd till inrättande av värmepumpsanläggning för utvinning av värme ur mark, ytvatten, eller grundvatten enligt vad kommunen har föreskrivit för att skydda människors hälsa eller miljön och som inte omfattas av fast avgift enligt taxebilaga 2.","17 § förordningen  (1998:899) om miljöfarlig verksamhet och hälsoskydd","Välj avgiftstyp","Välj avgiftsnivå",null,{"$f":"IF(TableData[[#This Row],[Typ av avgift]]=\"Avgiftsnivå\",TableData[[#This Row],[Avgiftsnivå]],IF(TableData[[#This Row],[Typ av avgift]]=\"Timavgift\",\"Timavgift\",IF(TableData[[#This Row],[Typ av avgift]]=\"Fast belopp\",TableData[[#This Row],[Fast belopp/avgift]]&\" kr\",IF(TableData[[#This Row],[Typ av avgift]]=\"Fast avgift\",TableData[[#This Row],[Fast belopp/avgift]]&\" tim\",\"\"))))","v":""}]
["Ansökan om tillstånd till inrättande av luftvärmepump enligt vad kommunen har föreskrivit för att förhindra olägenheter för människors hälsa.","40 § förordningen (1998:899) om miljöfarlig verksamhet och hälsoskydd, 9 kap 12 § miljöbalken","Välj avgiftstyp","Välj avgiftsnivå",null,{"$f":"IF(TableData[[#This Row],[Typ av avgift]]=\"Avgiftsnivå\",TableData[[#This Row],[Avgiftsnivå]],IF(TableData[[#This Row],[Typ av avgift]]=\"Timavgift\",\"Timavgift\",IF(TableData[[#This Row],[Typ av avgift]]=\"Fast belopp\",TableData[[#This Row],[Fast belopp/avgift]]&\" kr\",IF(TableData[[#This Row],[Typ av avgift]]=\"Fast avgift\",TableData[[#This Row],[Fast belopp/avgift]]&\" tim\",\"\"))))","v":""}]
["Ansökan om tillstånd till hållande av vissa djur inom område med detaljplan eller områdesbestämmelser enligt vad kommunen har föreskrivit för att förhindra olägenheter för människors hälsa.","39 § förordningen (1998:899) om miljöfarlig verksamhet och hälsoskydd","Välj avgiftstyp","Välj avgiftsnivå",null,{"$f":"IF(TableData[[#This Row],[Typ av avgift]]=\"Avgiftsnivå\",TableData[[#This Row],[Avgiftsnivå]],IF(TableData[[#This Row],[Typ av avgift]]=\"Timavgift\",\"Timavgift\",IF(TableData[[#This Row],[Typ av avgift]]=\"Fast belopp\",TableData[[#This Row],[Fast belopp/avgift]]&\" kr\",IF(TableData[[#This Row],[Typ av avgift]]=\"Fast avgift\",TableData[[#This Row],[Fast belopp/avgift]]&\" tim\",\"\"))))","v":""}]
["Ansökan om tillstånd till spridning av naturligt gödsel, slam och annan orenlighet inom område med detaljplan eller intill sådant område enligt vad kommunen har föreskrivit för att förhindra olägenheter för människors hälsa.","40 och 42 §§ förordningen (1998:899) om miljöfarlig verksamhet och hälsoskydd, 9 kap 12 § miljöbalken","Välj avgiftstyp","Välj avgiftsnivå",null,{"$f":"IF(TableData[[#This Row],[Typ av avgift]]=\"Avgiftsnivå\",TableData[[#This Row],[Avgiftsnivå]],IF(TableData[[#This Row],[Typ av avgift]]=\"Timavgift\",\"Timavgift\",IF(TableData[[#This Row],[Typ av avgift]]=\"Fast belopp\",TableData[[#This Row],[Fast belopp/avgift]]&\" kr\",IF(TableData[[#This Row],[Typ av avgift]]=\"Fast avgift\",TableData[[#This Row],[Fast belopp/avgift]]&\" tim\",\"\"))))","v":""}]
["Ansökan om tillstånd eller dispens i andra frågor enligt vad kommunen har föreskrivit för att förhindra olägenheter för människors hälsa.","40 § förordningen (1998:899) om miljöfarlig verksamhet och hälsoskydd, 9 kap 12 § miljöbalken","Välj avgiftstyp","Välj avgiftsnivå",null,{"$f":"IF(TableData[[#This Row],[Typ av avgift]]=\"Avgiftsnivå\",TableData[[#This Row],[Avgiftsnivå]],IF(TableData[[#This Row],[Typ av avgift]]=\"Timavgift\",\"Timavgift\",IF(TableData[[#This Row],[Typ av avgift]]=\"Fast belopp\",TableData[[#This Row],[Fast belopp/avgift]]&\" kr\",IF(TableData[[#This Row],[Typ av avgift]]=\"Fast avgift\",TableData[[#This Row],[Fast belopp/avgift]]&\" tim\",\"\"))))","v":""}]
["Handläggning av anmälan",null,null,null,null," "]
["Anmälan om miljöfarlig verksamhet.","9 kap 6 §, 1 kap 10 § miljöprövnings-förordningen (2013:251)","Välj avgiftstyp","Välj avgiftsnivå",null,{"$f":"IF(TableData[[#This Row],[Typ av avgift]]=\"Avgiftsnivå\",TableData[[#This Row],[Avgiftsnivå]],IF(TableData[[#This Row],[Typ av avgift]]=\"Timavgift\",\"Timavgift\",IF(TableData[[#This Row],[Typ av avgift]]=\"Fast belopp\",TableData[[#This Row],[Fast belopp/avgift]]&\" kr\",\"\")))","v":""}]
["Anmälan om ändring av miljöfarlig verksamhet, och som inte omfattas av fast avgift enligt taxebilaga 2.","1 kap 11 § miljöprövnings-förordningen (2013:251)","Välj avgiftstyp","Välj avgiftsnivå",null,{"$f":"IF(TableData[[#This Row],[Typ av avgift]]=\"Avgiftsnivå\",TableData[[#This Row],[Avgiftsnivå]],IF(TableData[[#This Row],[Typ av avgift]]=\"Timavgift\",\"Timavgift\",IF(TableData[[#This Row],[Typ av avgift]]=\"Fast belopp\",TableData[[#This Row],[Fast belopp/avgift]]&\" kr\",\"\")))","v":""}]
["Anmälan om inrättande av en avloppsanordning utan vattentoalett, och som inte omfattas av fast avgift enligt taxebilaga 2.","13 § förordningen (1998:899) om miljöfarlig verksamhet och hälsoskydd","Välj avgiftstyp","Välj avgiftsnivå",null,{"$f":"IF(TableData[[#This Row],[Typ av avgift]]=\"Avgiftsnivå\",TableData[[#This Row],[Avgiftsnivå]],IF(TableData[[#This Row],[Typ av avgift]]=\"Timavgift\",\"Timavgift\",IF(TableData[[#This Row],[Typ av avgift]]=\"Fast belopp\",TableData[[#This Row],[Fast belopp/avgift]]&\" kr\",\"\")))","v":""}]
["Anmälan om ändring av en avloppsanordning och som inte omfattas av fast avgift enligt taxebilaga 2.","14 § förordningen (1998:899) om miljöfarlig verksamhet och hälsoskydd","Välj avgiftstyp","Välj avgiftsnivå",null,{"$f":"IF(TableData[[#This Row],[Typ av avgift]]=\"Avgiftsnivå\",TableData[[#This Row],[Avgiftsnivå]],IF(TableData[[#This Row],[Typ av avgift]]=\"Timavgift\",\"Timavgift\",IF(TableData[[#This Row],[Typ av avgift]]=\"Fast belopp\",TableData[[#This Row],[Fast belopp/avgift]]&\" kr\",\"\")))","v":""}]
["Anmälan om inrättande av värmepumpsanläggning för utvinning av värme ur mark, ytvatten eller grundvatten och som inte omfattas av fast avgift enligt taxebilaga 2.","17 § förordningen (1998:899) om miljöfarlig verksamhet och hälsoskydd","Välj avgiftstyp","Välj avgiftsnivå",null,{"$f":"IF(TableData[[#This Row],[Typ av avgift]]=\"Avgiftsnivå\",TableData[[#This Row],[Avgiftsnivå]],IF(TableData[[#This Row],[Typ av avgift]]=\"Timavgift\",\"Timavgift\",IF(TableData[[#This Row],[Typ av avgift]]=\"Fast belopp\",TableData[[#This Row],[Fast belopp/avgift]]&\" kr\",\"\")))","v":""}]
["Anmälan om inrättande av luftvärmepump enligt vad kommunen har föreskrivit för att förhindra olägenheter för människors hälsa.","40 § förordningen (1998:899) om miljöfarlig verksamhet och hälsoskydd, 9 kap 12 § miljöbalken","Välj avgiftstyp","Välj avgiftsnivå",null,{"$f":"IF(TableData[[#This Row],[Typ av avgift]]=\"Avgiftsnivå\",TableData[[#This Row],[Avgiftsnivå]],IF(TableData[[#This Row],[Typ av avgift]]=\"Timavgift\",\"Timavgift\",IF(TableData[[#This Row],[Typ av avgift]]=\"Fast belopp\",TableData[[#This Row],[Fast belopp/avgift]]&\" kr\",\"\")))","v":""}]
["Anmälan om anläggande av gödselstad eller annan upplagsplats för djurspillning inom ett område med detaljplan eller intill sådant område enligt vad kommunen har föreskrivit för att förhindra olägenheter för människors hälsa.","37 och 42 §§ förordningen (1998:899) om miljöfarlig verksamhet och hälsoskydd","Välj avgiftstyp","Välj avgiftsnivå",null,{"$f":"IF(TableData[[#This Row],[Typ av avgift]]=\"Avgiftsnivå\",TableData[[#This Row],[Avgiftsnivå]],IF(TableData[[#This Row],[Typ av avgift]]=\"Timavgift\",\"Timavgift\",IF(TableData[[#This Row],[Typ av avgift]]=\"Fast belopp\",TableData[[#This Row],[Fast belopp/avgift]]&\" kr\",\"\")))","v":""}]
["Anmälan om spridning av naturligt gödsel, slam och annan orenlighet inom område med detaljplan eller intill sådant område enligt vad kommunen har föreskrivit för att förhindra olägenheter för människors hälsa.","40 och 42 § § förordningen (1998:899) om miljöfarlig verksamhet och hälsoskydd, 9 kap 12 § miljöbalken","Välj avgiftstyp","Välj avgiftsnivå",null,{"$f":"IF(TableData[[#This Row],[Typ av avgift]]=\"Avgiftsnivå\",TableData[[#This Row],[Avgiftsnivå]],IF(TableData[[#This Row],[Typ av avgift]]=\"Timavgift\",\"Timavgift\",IF(TableData[[#This Row],[Typ av avgift]]=\"Fast belopp\",TableData[[#This Row],[Fast belopp/avgift]]&\" kr\",\"\")))","v":""}]
["Anmälan i andra frågor enligt vad kommunen har föreskrivit för att förhindra olägenheter för människors hälsa.","40 § förordningen (1998:899) om miljöfarlig verksamhet och hälsoskydd, 9 kap 12 § miljöbalken","Välj avgiftstyp","Välj avgiftsnivå",null,{"$f":"IF(TableData[[#This Row],[Typ av avgift]]=\"Avgiftsnivå\",TableData[[#This Row],[Avgiftsnivå]],IF(TableData[[#This Row],[Typ av avgift]]=\"Timavgift\",\"Timavgift\",IF(TableData[[#This Row],[Typ av avgift]]=\"Fast belopp\",TableData[[#This Row],[Fast belopp/avgift]]&\" kr\",\"\")))","v":""}]
["Anmälan om att driva eller arrangera anmälningspliktig hälsoskyddsverksamhet där allmänheten yrkesmässigt erbjuds hygieniska behandlingar som innebär risk för blodsmitta eller annan smitta på grund av användningen av skalpeller, akupunkturnålar, piercningsverktyg eller andra liknande skärande eller stickande verktyg.\nVerksamhet som omfattas av lagen (2021:363) om estetiska kirurgiska ingrepp och estetiska injektionsbehandlingar är inte anmälningspliktig.","38 § förordningen (1998:899) om miljöfarlig verksamhet och hälsoskydd","Välj avgiftstyp","Välj avgiftsnivå",null,{"$f":"IF(TableData[[#This Row],[Typ av avgift]]=\"Avgiftsnivå\",TableData[[#This Row],[Avgiftsnivå]],IF(TableData[[#This Row],[Typ av avgift]]=\"Timavgift\",\"Timavgift\",IF(TableData[[#This Row],[Typ av avgift]]=\"Fast belopp\",TableData[[#This Row],[Fast belopp/avgift]]&\" kr\",\"\")))","v":""}]
["Anmälan om att driva eller arrangera anmälningspliktig hälsoskyddsverksamhet med bassängbad för allmänheten, eller som på annat sätt används av många människor.","38 § förordningen (1998:899) om miljöfarlig verksamhet och hälsoskydd","Välj avgiftstyp","Välj avgiftsnivå",null,{"$f":"IF(TableData[[#This Row],[Typ av avgift]]=\"Avgiftsnivå\",TableData[[#This Row],[Avgiftsnivå]],IF(TableData[[#This Row],[Typ av avgift]]=\"Timavgift\",\"Timavgift\",IF(TableData[[#This Row],[Typ av avgift]]=\"Fast belopp\",TableData[[#This Row],[Fast belopp/avgift]]&\" kr\",\"\")))","v":""}]
["Anmälan om att driva eller arrangera anmälningspliktig hälsoskyddsverksamhet som utgörs av förskola, öppen förskola, fritidshem, öppen fritidsverksamhet, förskoleklass, grundskola, grundsärskola, gymnasieskola, gymnasiesärskola, specialskola, sameskola eller internationell skola.","38 § förordningen (1998:899) om miljöfarlig verksamhet och hälsoskydd","Välj avgiftstyp","Välj avgiftsnivå",null,{"$f":"IF(TableData[[#This Row],[Typ av avgift]]=\"Avgiftsnivå\",TableData[[#This Row],[Avgiftsnivå]],IF(TableData[[#This Row],[Typ av avgift]]=\"Timavgift\",\"Timavgift\",IF(TableData[[#This Row],[Typ av avgift]]=\"Fast belopp\",TableData[[#This Row],[Fast belopp/avgift]]&\" kr\",\"\")))","v":""}]
["Tillsyn"]
["Olägenheter från joniserande och icke-joniserande strålning från verksamheter som är tillståndspliktiga enligt miljöprövningsförordningen (2013:251) och är kärntekniska verksamheter enligt lagen (1984:3) om kärnteknisk verksamhet eller verksamheter med strålning enligt strålskyddslagen (1988:220) om Strålsäkerhetsmyndigheten har överlåtit tillsynen till kommunen.","1 kap 19 och 20 §§ samt 2 kap 26 § miljötillsynsförordningen (2011:13)","Välj avgiftstyp","Välj avgiftsnivå",null,{"$f":"IF(TableData[[#This Row],[Typ av avgift]]=\"Avgiftsnivå\",TableData[[#This Row],[Avgiftsnivå]],IF(TableData[[#This Row],[Typ av avgift]]=\"Timavgift\",\"Timavgift\",IF(TableData[[#This Row],[Typ av avgift]]=\"Fast belopp\",TableData[[#This Row],[Fast belopp/avgift]]&\" kr\",\"\")))","v":""}]
["Annan miljöfarlig verksamhet, som inte omfattas av fast avgift för tillsyn enligt taxebilaga 2 eller timavgift enligt taxebilaga 3.","26 kap 3 § 3 st miljöbalken, \n2 kap 31 § p 1 miljötillsynsförordningen","Välj avgiftstyp","Välj avgiftsnivå",null,{"$f":"IF(TableData[[#This Row],[Typ av avgift]]=\"Avgiftsnivå\",TableData[[#This Row],[Avgiftsnivå]],IF(TableData[[#This Row],[Typ av avgift]]=\"Timavgift\",\"Timavgift\",IF(TableData[[#This Row],[Typ av avgift]]=\"Fast belopp\",TableData[[#This Row],[Fast belopp/avgift]]&\" kr\",\"\")))","v":""}]
["Byggnader, lokaler och anläggningar som kräver särskild uppmärksamhet och som som inte omfattas av  avgift för tillsyn enligt taxebilaga 2 eller taxebilaga 3;\n1. byggnader som innehåller en eller flera bostäder och tillhörande utrymmen,\n2. lokaler för undervisning, vård eller annat omhändertagande,\n3. samlingslokaler där många människor brukar samlas,\n4. hotell, pensionat och liknande lokaler där allmänheten yrkesmässigt erbjuds tillfällig bostad,\n5. idrottsanläggningar, campinganläggningar, badanläggningar, strandbad och andra liknande anläggningar som är upplåtna för allmänheten eller som annars utnyttjas av många människor,\n6. lokaler där allmänheten yrkesmässigt erbjuds hygienisk behandling  och där verksamheten inte endast omfattar estetiska kirurgiska ingrepp och estetiska injektionsbehandlingar ,\n7. lokaler för förvaring av djur.","26 kap 3 § 3 st miljöbalken, \n45 § förordningen (1998:899) om miljöfarlig verksamhet och hälsoskydd","Välj avgiftstyp","Välj avgiftsnivå",null,{"$f":"IF(TableData[[#This Row],[Typ av avgift]]=\"Avgiftsnivå\",TableData[[#This Row],[Avgiftsnivå]],IF(TableData[[#This Row],[Typ av avgift]]=\"Timavgift\",\"Timavgift\",IF(TableData[[#This Row],[Typ av avgift]]=\"Fast belopp\",TableData[[#This Row],[Fast belopp/avgift]]&\" kr\",\"\")))","v":""}]
["Radon i bostäder och lokaler för allmänna ändamål.","26 kap 3 § 3 st miljöbalken","Välj avgiftstyp","Välj avgiftsnivå",null,{"$f":"IF(TableData[[#This Row],[Typ av avgift]]=\"Avgiftsnivå\",TableData[[#This Row],[Avgiftsnivå]],IF(TableData[[#This Row],[Typ av avgift]]=\"Timavgift\",\"Timavgift\",IF(TableData[[#This Row],[Typ av avgift]]=\"Fast belopp\",TableData[[#This Row],[Fast belopp/avgift]]&\" kr\",\"\")))","v":""}]
["Annan hälsoskyddsverksamhet, som inte omfattas av fast avgift för tillsyn enligt taxebilaga 2.","26 kap 3 § 3 st miljöbalken","Välj avgiftstyp","Välj avgiftsnivå",null,{"$f":"IF(TableData[[#This Row],[Typ av avgift]]=\"Avgiftsnivå\",TableData[[#This Row],[Avgiftsnivå]],IF(TableData[[#This Row],[Typ av avgift]]=\"Timavgift\",\"Timavgift\",IF(TableData[[#This Row],[Typ av avgift]]=\"Fast belopp\",TableData[[#This Row],[Fast belopp/avgift]]&\" kr\",\"\")))","v":""}]
["AVGIFT FÖR VATTENVERKSAMHET"]
["Prövning av ansökan"]
["Ansökan  enligt vad kommunen har föreskrivit för att förhindra olägenheter för människors hälsa om tillstånd till inrättande och användande av ny anläggning för grundvattentäkt och denna inte kräver tillstånd enligt 11 kap miljöbalken. ","9 kap 10 § 2 st miljöbalken","Välj avgiftstyp","Välj avgiftsnivå",null,{"$f":"IF(TableData[[#This Row],[Typ av avgift]]=\"Avgiftsnivå\",TableData[[#This Row],[Avgiftsnivå]],IF(TableData[[#This Row],[Typ av avgift]]=\"Timavgift\",\"Timavgift\",IF(TableData[[#This Row],[Typ av avgift]]=\"Fast belopp\",TableData[[#This Row],[Fast belopp/avgift]]&\" kr\",\"\")))","v":""}]
["Handläggning av anmälan"]
["Anmälan om vattenverksamhet där länsstyrelsen har överlåtit uppgiften att utöva tillsyn.","11 kap 9b § 2 st miljöbalken, 19 § förordningen (1998:1388) om vattenverksamheter,  \n1 kap 19 och 20 §§ samt 2 kap 29 § miljötillsynsförordningen (2011:13)","Välj avgiftstyp","Välj avgiftsnivå",null,{"$f":"IF(TableData[[#This Row],[Typ av avgift]]=\"Avgiftsnivå\",TableData[[#This Row],[Avgiftsnivå]],IF(TableData[[#This Row],[Typ av avgift]]=\"Timavgift\",\"Timavgift\",IF(TableData[[#This Row],[Typ av avgift]]=\"Fast belopp\",TableData[[#This Row],[Fast belopp/avgift]]&\" kr\",\"\")))","v":""}]
["Anmälan enligt vad kommunen har föreskrivit för att förhindra olägenheter för människors hälsa om inrättande och användande av ny anläggning för grundvattentäkt och denna inte kräver tillstånd enligt 11 kap miljöbalken.","9 kap 10 § 2 st miljöbalken","Välj avgiftstyp","Välj avgiftsnivå",null,{"$f":"IF(TableData[[#This Row],[Typ av avgift]]=\"Avgiftsnivå\",TableData[[#This Row],[Avgiftsnivå]],IF(TableData[[#This Row],[Typ av avgift]]=\"Timavgift\",\"Timavgift\",IF(TableData[[#This Row],[Typ av avgift]]=\"Fast belopp\",TableData[[#This Row],[Fast belopp/avgift]]&\" kr\",\"\")))","v":""}]
["Anmälan enligt vad kommunen har föreskrivit för att förhindra olägenheter för människors hälsa om användande av befintlig anläggning för grundvattentäkt.","9 kap 10 § 2 st miljöbalken ","Välj avgiftstyp","Välj avgiftsnivå",null,{"$f":"IF(TableData[[#This Row],[Typ av avgift]]=\"Avgiftsnivå\",TableData[[#This Row],[Avgiftsnivå]],IF(TableData[[#This Row],[Typ av avgift]]=\"Timavgift\",\"Timavgift\",IF(TableData[[#This Row],[Typ av avgift]]=\"Fast belopp\",TableData[[#This Row],[Fast belopp/avgift]]&\" kr\",\"\")))","v":""}]
["Tillsyn"]
["Anläggning för grundvattentäkt som kräver tillstånd eller anmälan enligt vad kommunen har föreskrivit för att förhindra olägenheter för människors hälsa och som inte kräver tillstånd enligt 11 kap miljöbalken. ","9 kap 10 § 2 st miljöbalken, 2 kap 31 § p 2 miljötillsynsförordningen (2011:13)","Välj avgiftstyp","Välj avgiftsnivå",null,{"$f":"IF(TableData[[#This Row],[Typ av avgift]]=\"Avgiftsnivå\",TableData[[#This Row],[Avgiftsnivå]],IF(TableData[[#This Row],[Typ av avgift]]=\"Timavgift\",\"Timavgift\",IF(TableData[[#This Row],[Typ av avgift]]=\"Fast belopp\",TableData[[#This Row],[Fast belopp/avgift]]&\" kr\",\"\")))","v":""}]
["Övrig vattenverksamhet där länsstyrelsen har överlåtit uppgiften att utöva tillsyn."," 1 kap 19 och 20 §§ samt 2 kap 29 § miljötillsynsförordningen (2011:13), 26 kap 10 § miljöbalken","Välj avgiftstyp","Välj avgiftsnivå",null,{"$f":"IF(TableData[[#This Row],[Typ av avgift]]=\"Avgiftsnivå\",TableData[[#This Row],[Avgiftsnivå]],IF(TableData[[#This Row],[Typ av avgift]]=\"Timavgift\",\"Timavgift\",IF(TableData[[#This Row],[Typ av avgift]]=\"Fast belopp\",TableData[[#This Row],[Fast belopp/avgift]]&\" kr\",\"\")))","v":""}]
["AVGIFT FÖR KEMISKA PRODUKTER OCH BIOTEKNISKA ORGANISMER "]
["LAGRING AV BRANDFARLIGA VÄTSKOR"]
["Tillsyn"]
["Information innan installation påbörjas eller hantering inleds av  brandfarliga vätskor eller spillolja i cistern ovan eller i mark som rymmer mer än 1 m3 vätska (inom vattenskyddsområde hantering av mer än 250 liter brandfarliga vätskor eller spillolja) med tillhörande rörledningar. (Gäller inte om hanteringen är tillståndspliktig enligt miljöprövningsförordningen (2013:251) eller prövas inom ramen för en annan tillståndspliktig verksamhet enligt miljöbalken.) ","1 kap 1 § och 3 kap 1 § 1 st Naturvårdsverkets föreskrifter om skydd mot mark- och vatten-förorening vid hantering av\nbrandfarliga vätskor och spilloljor (NFS 2017:5), 2 kap 31 och 32 §§ miljötillsynsför-ordningen (2011:13)","Välj avgiftstyp","Välj avgiftsnivå",null,{"$f":"IF(TableData[[#This Row],[Typ av avgift]]=\"Avgiftsnivå\",TableData[[#This Row],[Avgiftsnivå]],IF(TableData[[#This Row],[Typ av avgift]]=\"Timavgift\",\"Timavgift\",IF(TableData[[#This Row],[Typ av avgift]]=\"Fast belopp\",TableData[[#This Row],[Fast belopp/avgift]]&\" kr\",\"\")))","v":""}]
["Information om cistern som tagits ur bruk. (Gäller inte om hanteringen är tillståndspliktig enligt miljöprövningsförordningen (2013:251) eller prövas inom ramen för en annan tillståndspliktig verksamhet enligt miljöbalken.)","1 kap 1 § och 6 kap 1 § Naturvårdsverkets föreskrifter om skydd mot mark- och vattenförorening vid hantering av\nbrandfarliga vätskor och spilloljor (NFS 2017:5), 2 kap 31 och 32 §§ miljötillsyns-förordningen (2011:13)","Välj avgiftstyp","Välj avgiftsnivå",null,{"$f":"IF(TableData[[#This Row],[Typ av avgift]]=\"Avgiftsnivå\",TableData[[#This Row],[Avgiftsnivå]],IF(TableData[[#This Row],[Typ av avgift]]=\"Timavgift\",\"Timavgift\",IF(TableData[[#This Row],[Typ av avgift]]=\"Fast belopp\",TableData[[#This Row],[Fast belopp/avgift]]&\" kr\",\"\")))","v":""}]
["Kopior på rapporter från kontroller, inklusive periodiska kontroller, av cisterner och rörledningar. (Gäller inte om hanteringen är tillståndspliktig enligt miljöprövningsförordningen (2013:251) eller prövas inom ramen för en annan tillståndspliktig verksamhet enligt miljöbalken.) ","1 kap 1 § och 3 kap 1 § 2 st Naturvårdsverkets föreskrifter om skydd mot mark- och vatten-förorening vid hantering av\nbrandfarliga vätskor och spilloljor (NFS 2017:5), 2 kap 31 och 32 §§ miljötillsyns-förordningen (2011:13)","Välj avgiftstyp","Välj avgiftsnivå",null,{"$f":"IF(TableData[[#This Row],[Typ av avgift]]=\"Avgiftsnivå\",TableData[[#This Row],[Avgiftsnivå]],IF(TableData[[#This Row],[Typ av avgift]]=\"Timavgift\",\"Timavgift\",IF(TableData[[#This Row],[Typ av avgift]]=\"Fast belopp\",TableData[[#This Row],[Fast belopp/avgift]]&\" kr\",\"\")))","v":""}]
["Övrig tillsyn av hantering av brandfarliga vätskor och spillolja. (Gäller inte om hanteringen är tillståndspliktig enligt miljöprövningsförordningen (2013:251) eller prövas inom ramen för en annan tillståndspliktig verksamhet enligt miljöbalken.) ","1 kap 1 § Naturvårdsverkets föreskrifter om skydd mot mark- och vatten-förorening vid hantering av\nbrandfarliga vätskor och spilloljor (NFS 2017:5), 26 kap 3 § miljöbalken, 2 kap 31 och 32 §§ miljö-tillsynsförordningen (2011:13)","Välj avgiftstyp","Välj avgiftsnivå",null,{"$f":"IF(TableData[[#This Row],[Typ av avgift]]=\"Avgiftsnivå\",TableData[[#This Row],[Avgiftsnivå]],IF(TableData[[#This Row],[Typ av avgift]]=\"Timavgift\",\"Timavgift\",IF(TableData[[#This Row],[Typ av avgift]]=\"Fast belopp\",TableData[[#This Row],[Fast belopp/avgift]]&\" kr\",\"\")))","v":""}]
["FLUORERADE VÄXTHUSGASER "]
["Tillsyn"]
["Underrättelse och samråd innan installation eller konvertering sker av sådan utrustning som innehåller 14 ton koldioxidekvivalenter f-gas eller mer, om valet av utrustning och köldmedium inte behandlas inom ramen för en ansökan om tillstånd eller en anmälan enligt 9 kap miljöbalken.","14 § förordning (2016:1128) om fluorerade växthus-gaser, 2 kap 31 och 32 §§ miljötillsyns-förordningen (2011:13)","Välj avgiftstyp","Välj avgiftsnivå",null,{"$f":"IF(TableData[[#This Row],[Typ av avgift]]=\"Avgiftsnivå\",TableData[[#This Row],[Avgiftsnivå]],IF(TableData[[#This Row],[Typ av avgift]]=\"Timavgift\",\"Timavgift\",IF(TableData[[#This Row],[Typ av avgift]]=\"Fast belopp\",TableData[[#This Row],[Fast belopp/avgift]]&\" kr\",\"\")))","v":""}]
["Rapport om det under någon del av ett kalenderår finns minst 14 ton koldioxidekvivalenter i en stationär anläggning eller i en mobil utrustning som omfattas av läckagekontroll enligt 11 § eller enligt artikel 3.3 andra stycket och 4.1-4.3 i EU-förordningen om f-gaser. ","15 § förordning (2016:1128) om fluorerade växthusgaser, 2 kap 31 och 32 §§ miljötillsyns-förordningen (2011:13)","Välj avgiftstyp","Välj avgiftsnivå",null,{"$f":"IF(TableData[[#This Row],[Typ av avgift]]=\"Avgiftsnivå\",TableData[[#This Row],[Avgiftsnivå]],IF(TableData[[#This Row],[Typ av avgift]]=\"Timavgift\",\"Timavgift\",IF(TableData[[#This Row],[Typ av avgift]]=\"Fast belopp\",TableData[[#This Row],[Fast belopp/avgift]]&\" kr\",\"\")))","v":""}]
["Övrig tillsyn av fluorerade växthusgaser, som inte omfattas av fast avgift för tillsyn enligt taxebilaga 2.","2 kap 31 och 32 §§ miljötillsynsför-ordningen (2011:13)","Välj avgiftstyp","Välj avgiftsnivå",null,{"$f":"IF(TableData[[#This Row],[Typ av avgift]]=\"Avgiftsnivå\",TableData[[#This Row],[Avgiftsnivå]],IF(TableData[[#This Row],[Typ av avgift]]=\"Timavgift\",\"Timavgift\",IF(TableData[[#This Row],[Typ av avgift]]=\"Fast belopp\",TableData[[#This Row],[Fast belopp/avgift]]&\" kr\",\"\")))","v":""}]
["OZONNEDBRYTANDE ÄMNEN "]
["Tillsyn"]
["Utrustning i motorfordon, flyg och tåg som innehåller kontrollerade ämnen.","Förordning (EU) nr 517/2014, förordning (EG) nr 1005/2009, \n2 kap 31 § p 6 miljötillsyns-förordningen (2011:13)","Välj avgiftstyp","Välj avgiftsnivå",null,{"$f":"IF(TableData[[#This Row],[Typ av avgift]]=\"Avgiftsnivå\",TableData[[#This Row],[Avgiftsnivå]],IF(TableData[[#This Row],[Typ av avgift]]=\"Timavgift\",\"Timavgift\",IF(TableData[[#This Row],[Typ av avgift]]=\"Fast belopp\",TableData[[#This Row],[Fast belopp/avgift]]&\" kr\",\"\")))","v":""}]
["Verksamhet där ozonnedbrytande ämne används för laboratorie- och analysarbeten  som betraktas som viktiga enligt bilagan till Kommissionens förordning (EU) nr 291/2011 , som inte omfattas av fast avgift för tillsyn enligt taxebilaga 2.","Förordning (EG) 1005/2009, förordning (EG) nr 291/2011, \n2 kap 31 § p 5 miljötillsyns-förordningen (2011:13)","Välj avgiftstyp","Välj avgiftsnivå",null,{"$f":"IF(TableData[[#This Row],[Typ av avgift]]=\"Avgiftsnivå\",TableData[[#This Row],[Avgiftsnivå]],IF(TableData[[#This Row],[Typ av avgift]]=\"Timavgift\",\"Timavgift\",IF(TableData[[#This Row],[Typ av avgift]]=\"Fast belopp\",TableData[[#This Row],[Fast belopp/avgift]]&\" kr\",\"\")))","v":""}]
["VÄXTSKYDDSMEDEL"]
["Prövning av ansökan"]
["Ansökan om särskilt tillstånd till yrkesmässig användning av växtskyddsmedel\n1. inom idrotts- och fritidsanläggningar,\n2. vid planerings- och anläggningsarbeten,\n3. på vägområden samt grusytor och andra mycket genomsläppliga ytor, och\n4. på ytor av asfalt, betong eller andra hårdgjorda material.","2 kap 40 och 40 a §§ förordningen (2014:425) om bekämpningsmedel ","Välj avgiftstyp","Välj avgiftsnivå",null,{"$f":"IF(TableData[[#This Row],[Typ av avgift]]=\"Avgiftsnivå\",TableData[[#This Row],[Avgiftsnivå]],IF(TableData[[#This Row],[Typ av avgift]]=\"Timavgift\",\"Timavgift\",IF(TableData[[#This Row],[Typ av avgift]]=\"Fast belopp\",TableData[[#This Row],[Fast belopp/avgift]]&\" kr\",\"\")))","v":""}]
["Ansökan om tillstånd att yrkesmässigt använda växtskyddsmedel utomhus inom ett vattenskyddsområde som har inrättats före den 1 januari 2018 eller där föreskrifterna inte har ändrats efter den 1 januari 2018.","6 kap 1 och 2 §§ Naturvårdsverkets föreskrifter om spridning och viss övrig hantering av växtskyddsmedel (NFS 2015:2), 2 kap 36 § 2 st förordningen(2014:425) om bekämpningsmedel och 7 kap 22 § miljöbalken","Välj avgiftstyp","Välj avgiftsnivå",null,{"$f":"IF(TableData[[#This Row],[Typ av avgift]]=\"Avgiftsnivå\",TableData[[#This Row],[Avgiftsnivå]],IF(TableData[[#This Row],[Typ av avgift]]=\"Timavgift\",\"Timavgift\",IF(TableData[[#This Row],[Typ av avgift]]=\"Fast belopp\",TableData[[#This Row],[Fast belopp/avgift]]&\" kr\",\"\")))","v":""}]
["Ansökan om dispens från förbudet att använda växtskyddsmedel \n1. på ängs- eller betesmark som inte är lämplig att plöja men som kan användas till slåtter eller bete,\n2. på skolgårdar eller gårdar till förskolor eller på lekplatser som allmänheten har tillträde till,\n3. i parker eller trädgårdar eller andra områden som i första hand är avsedda att vara rekreationsområden som allmänheten har tillträde till,\n4. inom koloniträdgårdsområden eller i växthus som inte används yrkesmässigt,\n5. på tomtmark för bostadshus eller på krukväxter i hemträdgårdsmiljö, eller\n6. på växter inomhus utom i produktionslokaler, lagerlokaler och liknande lokaler.","2 kap 37 och 39 §§ förordningen (2014:425) om bekämpningsmedel ","Välj avgiftstyp","Välj avgiftsnivå",null,{"$f":"IF(TableData[[#This Row],[Typ av avgift]]=\"Avgiftsnivå\",TableData[[#This Row],[Avgiftsnivå]],IF(TableData[[#This Row],[Typ av avgift]]=\"Timavgift\",\"Timavgift\",IF(TableData[[#This Row],[Typ av avgift]]=\"Fast belopp\",TableData[[#This Row],[Fast belopp/avgift]]&\" kr\",\"\")))","v":""}]
["Handläggning av anmälan"]
["Anmälan om yrkesmässig användning av växtskyddsmedel.","2 kap 41 och 41a §§ förordningen (2014:425) om bekämpningsmedel ","Välj avgiftstyp","Välj avgiftsnivå",null,{"$f":"IF(TableData[[#This Row],[Typ av avgift]]=\"Avgiftsnivå\",TableData[[#This Row],[Avgiftsnivå]],IF(TableData[[#This Row],[Typ av avgift]]=\"Timavgift\",\"Timavgift\",IF(TableData[[#This Row],[Typ av avgift]]=\"Fast belopp\",TableData[[#This Row],[Fast belopp/avgift]]&\" kr\",\"\")))","v":""}]
["Tillsyn"]
["Underrättelse vid olyckor då en större mängd växtskyddsmedel läckt ut eller kan befaras läcka ut.","9 kap 1 § Naturvårdsverkets föreskrifter om spridning och viss övrig hantering av växtskyddsmedel (NFS 2015:2), \n2 kap 31 § p 5 och \n2 kap 32 § 1 st p 2b miljötillsyns-förordningen (2011:13) ...","Välj avgiftstyp","Välj avgiftsnivå",null,{"$f":"IF(TableData[[#This Row],[Typ av avgift]]=\"Avgiftsnivå\",TableData[[#This Row],[Avgiftsnivå]],IF(TableData[[#This Row],[Typ av avgift]]=\"Timavgift\",\"Timavgift\",IF(TableData[[#This Row],[Typ av avgift]]=\"Fast belopp\",TableData[[#This Row],[Fast belopp/avgift]]&\" kr\",\"\")))","v":""}]
["Underrättelse om vattentäkt, grundvatten eller en sjö eller ett vattendrag befaras bli förorenat av växtskyddsmedel.","9 kap 3 § Naturvårdsverkets föreskrifter om spridning och viss övrig hantering av växtskyddsmedel (NFS 2015:2),  \n2 kap 31 § p 5 och \n2 kap 32 § 1 st p 2b miljötillsyns-förordningen (2011:13) ...","Välj avgiftstyp","Välj avgiftsnivå",null,{"$f":"IF(TableData[[#This Row],[Typ av avgift]]=\"Avgiftsnivå\",TableData[[#This Row],[Avgiftsnivå]],IF(TableData[[#This Row],[Typ av avgift]]=\"Timavgift\",\"Timavgift\",IF(TableData[[#This Row],[Typ av avgift]]=\"Fast belopp\",TableData[[#This Row],[Fast belopp/avgift]]&\" kr\",\"\")))","v":""}]
["Övrig tillsyn av växtskyddsmedel, som inte omfattas av fast avgift för tillsyn enligt taxebilaga 2.","2 kap 31 § p 5 miljö-tillsynsförordningen (2011:13)","Välj avgiftstyp","Välj avgiftsnivå",null,{"$f":"IF(TableData[[#This Row],[Typ av avgift]]=\"Avgiftsnivå\",TableData[[#This Row],[Avgiftsnivå]],IF(TableData[[#This Row],[Typ av avgift]]=\"Timavgift\",\"Timavgift\",IF(TableData[[#This Row],[Typ av avgift]]=\"Fast belopp\",TableData[[#This Row],[Fast belopp/avgift]]&\" kr\",\"\")))","v":""}]
["BIOCIDPRODUKTER"]
["Prövning av ansökan"]
["Ansökan om undantag från bestämmelserna om information och underrättelse i 4 kap 1-3 §§ Naturvårdsverkets föreskrifter\nom spridning av vissa biocidprodukter (NFS 2015:3). Gäller inte biocidprodukter som innehåller nematoder, insekter eller spindeldjur.","1 kap 1 § och 4 kap 4 § Naturvårdsverkets föreskrifter om spridning av vissa biocidprodukter (NFS 2015:3)","Välj avgiftstyp","Välj avgiftsnivå",null,{"$f":"IF(TableData[[#This Row],[Typ av avgift]]=\"Avgiftsnivå\",TableData[[#This Row],[Avgiftsnivå]],IF(TableData[[#This Row],[Typ av avgift]]=\"Timavgift\",\"Timavgift\",IF(TableData[[#This Row],[Typ av avgift]]=\"Fast belopp\",TableData[[#This Row],[Fast belopp/avgift]]&\" kr\",\"\")))","v":""}]
["Tillsyn"]
["Underrättelse i samband med spridning av biocidprodukt  på en plats som allmänheten har tillträde till, som inte omfattas av fast avgift för tillsyn enligt taxebilaga 2. Gäller inte biocidprodukter som innehåller nematoder, insekter eller spindeldjur.","1 kap 1 § och 4 kap 2 § Naturvårdsverkets föreskrifter\nom spridning av vissa biocidprodukter (NFS 2015:3),  \n2 kap 31 § p 5 miljö-tillsynsförordningen (2011:13)","Välj avgiftstyp","Välj avgiftsnivå",null,{"$f":"IF(TableData[[#This Row],[Typ av avgift]]=\"Avgiftsnivå\",TableData[[#This Row],[Avgiftsnivå]],IF(TableData[[#This Row],[Typ av avgift]]=\"Timavgift\",\"Timavgift\",IF(TableData[[#This Row],[Typ av avgift]]=\"Fast belopp\",TableData[[#This Row],[Fast belopp/avgift]]&\" kr\",\"\")))","v":""}]
["Övrig tillsyn av biocidprodukter, som inte omfattas av fast avgift för tillsyn enligt taxebilaga 2. Gäller inte biocidprodukter som innehåller nematoder, insekter eller spindeldjur.","Naturvårdsverkets föreskrifter\nom spridning av vissa biocidprodukter (NFS 2015:3), \n2 kap 31 § p 5 miljötillsynsförordningen (2011:13)","Välj avgiftstyp","Välj avgiftsnivå",null,{"$f":"IF(TableData[[#This Row],[Typ av avgift]]=\"Avgiftsnivå\",TableData[[#This Row],[Avgiftsnivå]],IF(TableData[[#This Row],[Typ av avgift]]=\"Timavgift\",\"Timavgift\",IF(TableData[[#This Row],[Typ av avgift]]=\"Fast belopp\",TableData[[#This Row],[Fast belopp/avgift]]&\" kr\",\"\")))","v":""}]
["PCB"]
["Prövning av ansökan"]
["Anökan om dispens från kravet om avlägsnande av PCB-produkt i byggnader och anläggningar och som inte omfattas av fast avgift för tillsyn enligt taxebilaga 2.","17 b § förordningen (2007:19) om PCB m.m.","Välj avgiftstyp","Välj avgiftsnivå",null,{"$f":"IF(TableData[[#This Row],[Typ av avgift]]=\"Avgiftsnivå\",TableData[[#This Row],[Avgiftsnivå]],IF(TableData[[#This Row],[Typ av avgift]]=\"Timavgift\",\"Timavgift\",IF(TableData[[#This Row],[Typ av avgift]]=\"Fast belopp\",TableData[[#This Row],[Fast belopp/avgift]]&\" kr\",\"\")))","v":""}]
["Handläggning av anmälan"]
["Anmälan om avlägsnande av fogmassa eller halkskyddad golvmassa enligt 17, 17 a eller 17 b § förordning (2007:19) om PCB m.m. och som inte omfattas av fast avgift för tillsyn enligt taxebilaga 2","18 § förordningen (2007:19) om PCB m.m.","Välj avgiftstyp","Välj avgiftsnivå",null,{"$f":"IF(TableData[[#This Row],[Typ av avgift]]=\"Avgiftsnivå\",TableData[[#This Row],[Avgiftsnivå]],IF(TableData[[#This Row],[Typ av avgift]]=\"Timavgift\",\"Timavgift\",IF(TableData[[#This Row],[Typ av avgift]]=\"Fast belopp\",TableData[[#This Row],[Fast belopp/avgift]]&\" kr\",\"\")))","v":""}]
["Tillsyn"]
["Övrig tillsyn av PCB-varor och PCB-produkter som inte omfattas av fast avgift för tillsyn enligt taxebilaga 2.","Förordningen  (2007:19) om PCB m.m., 26 kap 3 § 3 st miljöbalken, \n2 kap 31 § p 5 miljö-tillsynsförordningen (2011:13)","Välj avgiftstyp","Välj avgiftsnivå",null,{"$f":"IF(TableData[[#This Row],[Typ av avgift]]=\"Avgiftsnivå\",TableData[[#This Row],[Avgiftsnivå]],IF(TableData[[#This Row],[Typ av avgift]]=\"Timavgift\",\"Timavgift\",IF(TableData[[#This Row],[Typ av avgift]]=\"Fast belopp\",TableData[[#This Row],[Fast belopp/avgift]]&\" kr\",\"\")))","v":""}]
["KOSMETISKA PRODUKTER"]
["Tillsyn"]
["Kosmetiska produkter, de uppgifter som enligt artiklarna 24, 25.1, 25.5 första stycket, 26, 27.1 och 27.5 i förordning (EG) nr 1223/2009 ska skötas av behörig myndighet, samt rådgöra med Läkemedelsverket innan åtgärder vidtas enligt artikel 27.1 i förordningen. ","Förordning (EG) nr 1223/2009, 2 kap 34 § miljötillsyns-förordningen (2011:13)","Välj avgiftstyp","Välj avgiftsnivå",null,{"$f":"IF(TableData[[#This Row],[Typ av avgift]]=\"Avgiftsnivå\",TableData[[#This Row],[Avgiftsnivå]],IF(TableData[[#This Row],[Typ av avgift]]=\"Timavgift\",\"Timavgift\",IF(TableData[[#This Row],[Typ av avgift]]=\"Fast belopp\",TableData[[#This Row],[Fast belopp/avgift]]&\" kr\",\"\")))","v":""}]
["Marknadskontroll i fråga om kosmetiska produkter med fullgörande av de uppgifter som anges i 1 kap 5 § 3 st p 1 i miljötillsynsförordningen genom att inrätta lämpliga förfaranden enligt artikel 18.2  i förordning (EG) nr 765/2008 för att\na) följa upp klagomål och rapporter om risker relaterade till produkter som omfattas av harmoniserad gemenskapslagstiftning,\nb) bevaka olyckor och hälsoskador som dessa produkter misstänks ha orsakat,\nc) kontrollera att korrigerande åtgärder har vidtagits,\nd) följa upp vetenskaplig och teknisk kunskap i säkerhetsfrågor.","Förordning (EG) nr 1223/2009, 2 kap 35 § 1 st miljötillsynsförordningen (2011:13),  artikel 18.2 förordning (EG) nr 765/2008","Välj avgiftstyp","Välj avgiftsnivå"]
["ÖVRIGT AVSEENDE KEMISKA PRODUKTER"]
["Tillsyn"]
["Primärleverantörers hantering av kemiska produkter, biotekniska organismer och varor som inte innebär utsläppande på marknaden, som inte omfattas av fast avgift för tillsyn enligt taxebilaga 2.","2 kap 32 § miljö-tillsynsförordningen (2011:13)","Välj avgiftstyp","Välj avgiftsnivå",null,{"$f":"IF(TableData[[#This Row],[Typ av avgift]]=\"Avgiftsnivå\",TableData[[#This Row],[Avgiftsnivå]],IF(TableData[[#This Row],[Typ av avgift]]=\"Timavgift\",\"Timavgift\",IF(TableData[[#This Row],[Typ av avgift]]=\"Fast belopp\",TableData[[#This Row],[Fast belopp/avgift]]&\" kr\",\"\")))","v":""}]
["Hantering av kemiska produkter, biotekniska organismer och varor i andra verksamheter än miljöfarliga verksamheter enligt 9 kap miljöbalken, utom den tillsyn som Kemikalieinspektionen utövar över primärleverantörers utsläppande på marknaden","2 kap 31 § p 5 miljö-tillsynsförordningen (2011:13)","Välj avgiftstyp","Välj avgiftsnivå",null,{"$f":"IF(TableData[[#This Row],[Typ av avgift]]=\"Avgiftsnivå\",TableData[[#This Row],[Avgiftsnivå]],IF(TableData[[#This Row],[Typ av avgift]]=\"Timavgift\",\"Timavgift\",IF(TableData[[#This Row],[Typ av avgift]]=\"Fast belopp\",TableData[[#This Row],[Fast belopp/avgift]]&\" kr\",\"\")))","v":""}]
["Övrig tillsyn av kemiska produkter, som inte omfattas av fast avgift för tillsyn enligt taxebilaga 2.","1 kap 19 och 20 §§, \n2 kap 32 § samt 2 kap 19 § p 7-9, p 11-14, \np 16, p 17, p 19  miljö-tillsynsförordningen (2011:13), 26 kap 3 § \n3 st miljöbalken ","Välj avgiftstyp","Välj avgiftsnivå",null,{"$f":"IF(TableData[[#This Row],[Typ av avgift]]=\"Avgiftsnivå\",TableData[[#This Row],[Avgiftsnivå]],IF(TableData[[#This Row],[Typ av avgift]]=\"Timavgift\",\"Timavgift\",IF(TableData[[#This Row],[Typ av avgift]]=\"Fast belopp\",TableData[[#This Row],[Fast belopp/avgift]]&\" kr\",\"\")))","v":""}]
["AVGIFT FÖR VISS ÖVRIG VERKSAMHET"]
["ÄRENDEN OM ALLMÄNNA HÄNSYNSREGLER ENLIGT 2 KAP MILJÖBALKEN"]
["Tillsyn"]
["Hushållning med energi samt användning av förnyelsebara energikällor, i verksamhet eller vid vidtagande av åtgärd som inte omfattas av fast avgift för tillsyn enligt taxebilaga 2.","2 kap 5 § samt 26 kap \n3 § 3 st miljöbalken","Välj avgiftstyp","Välj avgiftsnivå",null,{"$f":"IF(TableData[[#This Row],[Typ av avgift]]=\"Avgiftsnivå\",TableData[[#This Row],[Avgiftsnivå]],IF(TableData[[#This Row],[Typ av avgift]]=\"Timavgift\",\"Timavgift\",IF(TableData[[#This Row],[Typ av avgift]]=\"Fast belopp\",TableData[[#This Row],[Fast belopp/avgift]]&\" kr\",\"\")))","v":""}]
["I verksamhet eller vid vidtagande av åtgärd som inte omfattas av fast avgift i taxebilaga 2, utnyttja möjligheterna att \n1. minska mängden avfall, \n2. minska mängden skadliga ämnen i material och produkter, \n3. minska de negativa effekterna av avfall, och\n4. återvinna avfall.","2 kap 5 § samt 26 kap \n3 § 3 st miljöbalken","Välj avgiftstyp","Välj avgiftsnivå",null,{"$f":"IF(TableData[[#This Row],[Typ av avgift]]=\"Avgiftsnivå\",TableData[[#This Row],[Avgiftsnivå]],IF(TableData[[#This Row],[Typ av avgift]]=\"Timavgift\",\"Timavgift\",IF(TableData[[#This Row],[Typ av avgift]]=\"Fast belopp\",TableData[[#This Row],[Fast belopp/avgift]]&\" kr\",\"\")))","v":""}]
["Övrig tillsyn över att miljöbalkens hänsynsregler efterlevs, i verksamhet eller vid vidtagande av åtgärd som inte omfattas av fast avgift för tillsyn enligt taxebilaga 2.","2 kap 2-4 §§ miljöbalken 26 kap 3 § 3 st miljöbalken","Välj avgiftstyp","Välj avgiftsnivå",null,{"$f":"IF(TableData[[#This Row],[Typ av avgift]]=\"Avgiftsnivå\",TableData[[#This Row],[Avgiftsnivå]],IF(TableData[[#This Row],[Typ av avgift]]=\"Timavgift\",\"Timavgift\",IF(TableData[[#This Row],[Typ av avgift]]=\"Fast belopp\",TableData[[#This Row],[Fast belopp/avgift]]&\" kr\",\"\")))","v":""}]
["ÄRENDEN ENLIGT 7 OCH 12 KAP MILJÖBALKEN"]
["Prövning av ansökan"]
["Ansökan om dispens från strandskyddsföreskrifter","7 kap 18 b § miljöbalken","Välj avgiftstyp","Välj avgiftsnivå",null,{"$f":"IF(TableData[[#This Row],[Typ av avgift]]=\"Avgiftsnivå\",TableData[[#This Row],[Avgiftsnivå]],IF(TableData[[#This Row],[Typ av avgift]]=\"Timavgift\",\"Timavgift\",IF(TableData[[#This Row],[Typ av avgift]]=\"Fast belopp\",TableData[[#This Row],[Fast belopp/avgift]]&\" kr\",\"\")))","v":""}]
["Ansökan om tillstånd till verksamhet eller åtgärd som inte får utföras utan tillstånd enligt föreskrifter för natur- eller kulturreservat eller vattenskyddsområde.","Gällande föreskrifter","Välj avgiftstyp","Välj avgiftsnivå",null,{"$f":"IF(TableData[[#This Row],[Typ av avgift]]=\"Avgiftsnivå\",TableData[[#This Row],[Avgiftsnivå]],IF(TableData[[#This Row],[Typ av avgift]]=\"Timavgift\",\"Timavgift\",IF(TableData[[#This Row],[Typ av avgift]]=\"Fast belopp\",TableData[[#This Row],[Fast belopp/avgift]]&\" kr\",\"\")))","v":""}]
["Ansökan om tillstånd till åtgärd som är förbjuden för att den strider mot syftet med det tilltänkta skyddet  av ett område eller föremål som omfattas av ett interimistiskt beslut meddelat av kommunen enligt 7 kap 24 §. ","7 kap 24 § miljöbalken","Välj avgiftstyp","Välj avgiftsnivå",null,{"$f":"IF(TableData[[#This Row],[Typ av avgift]]=\"Avgiftsnivå\",TableData[[#This Row],[Avgiftsnivå]],IF(TableData[[#This Row],[Typ av avgift]]=\"Timavgift\",\"Timavgift\",IF(TableData[[#This Row],[Typ av avgift]]=\"Fast belopp\",TableData[[#This Row],[Fast belopp/avgift]]&\" kr\",\"\")))","v":""}]
["Ansökan om dispens eller undantag från föreskrifter för natur- eller kulturreservat, naturminne, djur- och växtskyddsområde eller vattenskyddsområde. ","Gällande föreskrifter, 7 kap 7 § miljöbalken, 9 §  förordning (1998:1252) om områdesskydd enligt miljöbalken m.m.","Välj avgiftstyp","Välj avgiftsnivå",null,{"$f":"IF(TableData[[#This Row],[Typ av avgift]]=\"Avgiftsnivå\",TableData[[#This Row],[Avgiftsnivå]],IF(TableData[[#This Row],[Typ av avgift]]=\"Timavgift\",\"Timavgift\",IF(TableData[[#This Row],[Typ av avgift]]=\"Fast belopp\",TableData[[#This Row],[Fast belopp/avgift]]&\" kr\",\"\")))","v":""}]
["Ansökan om nya eller ändrade villkor i ett beslut om tillstånd eller dispens avseende natur- eller kulturreservat, naturminne, djur- och växtskyddsområde eller vattenskyddsområde.","Gällande föreskrifter, 7 kap 7 § miljöbalken, 9 §  förordning (1998:1252) om områdesskydd enligt miljöbalken m.m.","Välj avgiftstyp","Välj avgiftsnivå",null,{"$f":"IF(TableData[[#This Row],[Typ av avgift]]=\"Avgiftsnivå\",TableData[[#This Row],[Avgiftsnivå]],IF(TableData[[#This Row],[Typ av avgift]]=\"Timavgift\",\"Timavgift\",IF(TableData[[#This Row],[Typ av avgift]]=\"Fast belopp\",TableData[[#This Row],[Fast belopp/avgift]]&\" kr\",\"\")))","v":""}]
["Ansökan om dispens från förbudet att bedriva en verksamhet eller vidta en åtgärd som kan skada naturmiljön i ett biotopskyddsområde. ","7 kap 11 § 2 st miljöbalken, 1 kap 19 och 20 §§ samt 2 kap \n8 § miljötillsyns-förordningen (2011:13)","Välj avgiftstyp","Välj avgiftsnivå",null,{"$f":"IF(TableData[[#This Row],[Typ av avgift]]=\"Avgiftsnivå\",TableData[[#This Row],[Avgiftsnivå]],IF(TableData[[#This Row],[Typ av avgift]]=\"Timavgift\",\"Timavgift\",IF(TableData[[#This Row],[Typ av avgift]]=\"Fast belopp\",TableData[[#This Row],[Fast belopp/avgift]]&\" kr\",\"\")))","v":""}]
["Ansökan om undantag från bestämmelserna i 23 §, 23 a §, 23 b §, 24 § p 2 och p 3, 25 §, 26 §, 26 a §, 26 c §, 28 a §, 28 b § och 28 d § i jordbruksverkets föreskrifter SJVFS 2015:21 om omständighet har uppstått som verksamhetsutövaren varken\nkunnat eller borde ha förutsett och inte heller kunnat påverka och som inte omfattas av fast avgift för tillsyn enligt taxebilaga 2","36 § föreskrifter om ändring i Statens jordbruksverks föreskrifter och allmänna råd (SJVFS 2004:62) om miljöhänsyn i jordbruket vad avser växtnäring (SJVFS 2015:21), 1 kap 19 och 20 §§ samt 2 kap 8 § p 7 miljö-tillsynsförordningen (2011:13)","Välj avgiftstyp","Välj avgiftsnivå"]
["Handläggning av anmälan"]
["Anmälan om en verksamhet eller åtgärd inom natur- eller kulturreservat eller vattenskyddsområde som kräver anmälan enligt föreskrifter meddelade för natur- eller kulturreservat eller vattenskyddsområde.","Gällande föreskrifter","Välj avgiftstyp","Välj avgiftsnivå",null,{"$f":"IF(TableData[[#This Row],[Typ av avgift]]=\"Avgiftsnivå\",TableData[[#This Row],[Avgiftsnivå]],IF(TableData[[#This Row],[Typ av avgift]]=\"Timavgift\",\"Timavgift\",IF(TableData[[#This Row],[Typ av avgift]]=\"Fast belopp\",TableData[[#This Row],[Fast belopp/avgift]]&\" kr\",\"\")))","v":""}]
["Anmälan för samråd av en åtgärd som inte omfattas av tillstånds- eller anmälningsplikt enligt andra bestämmelser i miljöbalken och som kan komma att väsentligt ändra naturmiljön.","12 kap 6 § miljbalken","Välj avgiftstyp","Välj avgiftsnivå",null,{"$f":"IF(TableData[[#This Row],[Typ av avgift]]=\"Avgiftsnivå\",TableData[[#This Row],[Avgiftsnivå]],IF(TableData[[#This Row],[Typ av avgift]]=\"Timavgift\",\"Timavgift\",IF(TableData[[#This Row],[Typ av avgift]]=\"Fast belopp\",TableData[[#This Row],[Fast belopp/avgift]]&\" kr\",\"\")))","v":""}]
["Tillsyn"]
["Naturreservat,  kulturreservat, naturminnen, biotopskyddsområden, vattenskyddsområden som kommunen har beslutat om, djur- och växtskyddsområden som kommunen har meddelat föreskrifter om, område eller föremål som omfattas av ett interimistiskt beslut meddelat av kommunen enligt 7 kap 24 § miljöbalken, strandskydd utom det som länsstyrelsen har tillsyn över när det gäller väg- och järnvägsanläggningar. ","2 kap 9 § miljö-tillsynsförordningen","Välj avgiftstyp","Välj avgiftsnivå",null,{"$f":"IF(TableData[[#This Row],[Typ av avgift]]=\"Avgiftsnivå\",TableData[[#This Row],[Avgiftsnivå]],IF(TableData[[#This Row],[Typ av avgift]]=\"Timavgift\",\"Timavgift\",IF(TableData[[#This Row],[Typ av avgift]]=\"Fast belopp\",TableData[[#This Row],[Fast belopp/avgift]]&\" kr\",\"\")))","v":""}]
["Verksamhet som berörs av föreskrifter i fråga om\n1. begränsningar av antalet djur i ett jordbruk,\n2. försiktighetsmått för gödselhanteringen, och\n3. växtodlingen\noch som inte omfattas av fast avgift för tillsyn enligt taxebilaga 2.","12 kap 10 § miljö-balken,  2 kap 32 § miljötillsyns-\nförordningen (2011:13)","Välj avgiftstyp","Välj avgiftsnivå",null,{"$f":"IF(TableData[[#This Row],[Typ av avgift]]=\"Avgiftsnivå\",TableData[[#This Row],[Avgiftsnivå]],IF(TableData[[#This Row],[Typ av avgift]]=\"Timavgift\",\"Timavgift\",IF(TableData[[#This Row],[Typ av avgift]]=\"Fast belopp\",TableData[[#This Row],[Fast belopp/avgift]]&\" kr\",\"\")))","v":""}]
["Tillsyn  av skyddade områden enligt 7 kap miljöbalken som har beslutats av länsstyrelsen, om länsstyrelsen har överlåtit uppgiften att utöva tillsyn. ","1 kap 19 och 20 §§ samt 2 kap 8 §  miljötillsynsförord-ningen (2011:13)","Välj avgiftstyp","Välj avgiftsnivå",null,{"$f":"IF(TableData[[#This Row],[Typ av avgift]]=\"Avgiftsnivå\",TableData[[#This Row],[Avgiftsnivå]],IF(TableData[[#This Row],[Typ av avgift]]=\"Timavgift\",\"Timavgift\",IF(TableData[[#This Row],[Typ av avgift]]=\"Fast belopp\",TableData[[#This Row],[Fast belopp/avgift]]&\" kr\",\"\")))","v":""}]
["Skötsel av jordbruksmark och annan markanvändning vid jordbruket enligt 7, 8 och 12 kap. miljöbalken, om länsstyrelsen har överlåtit uppgiften att utöva tillsyn, som inte omfattas av fast avgift för tillsyn enligt taxebilaga 2.","1 kap 19 och 20 §§ samt 2 kap 8 § p 7 miljö-tillsynsförordningen (2011:13)","Välj avgiftstyp","Välj avgiftsnivå",null,{"$f":"IF(TableData[[#This Row],[Typ av avgift]]=\"Avgiftsnivå\",TableData[[#This Row],[Avgiftsnivå]],IF(TableData[[#This Row],[Typ av avgift]]=\"Timavgift\",\"Timavgift\",IF(TableData[[#This Row],[Typ av avgift]]=\"Fast belopp\",TableData[[#This Row],[Fast belopp/avgift]]&\" kr\",\"\")))","v":""}]
["Vilthägn, om länsstyrelsen har överlåtit uppgiften att utöva tillsyn.","12 kap 11 § miljöbalken, 1 kap 19 och 20 §§ samt \n2 kap 8 § p 10 miljötillsyns-förordningen  (2011:13)","Välj avgiftstyp","Välj avgiftsnivå",null,{"$f":"IF(TableData[[#This Row],[Typ av avgift]]=\"Avgiftsnivå\",TableData[[#This Row],[Avgiftsnivå]],IF(TableData[[#This Row],[Typ av avgift]]=\"Timavgift\",\"Timavgift\",IF(TableData[[#This Row],[Typ av avgift]]=\"Fast belopp\",TableData[[#This Row],[Fast belopp/avgift]]&\" kr\",\"\")))","v":""}]
["Övrig tillsyn av skötsel av jordbruksmark och  annan markanvändning i jordbruket och som inte omfattas av fast avgift för tillsyn enligt taxebilaga 2.","2 kap 8 § p 7  samt \n1 kap 19 och 20 §§ miljötillsyns-förordningen (2011:13) eller 26 kap 3 § 3 st miljöbalken","Välj avgiftstyp","Välj avgiftsnivå",null,{"$f":"IF(TableData[[#This Row],[Typ av avgift]]=\"Avgiftsnivå\",TableData[[#This Row],[Avgiftsnivå]],IF(TableData[[#This Row],[Typ av avgift]]=\"Timavgift\",\"Timavgift\",IF(TableData[[#This Row],[Typ av avgift]]=\"Fast belopp\",TableData[[#This Row],[Fast belopp/avgift]]&\" kr\",\"\")))","v":""}]
["ÄRENDEN ENLIGT 8 KAP MILJÖBALKEN"]
["Tillsyn"]
["Skydd för biologisk mångfald om länsstyrelsen har överlåtit uppgiften att utöva tillsyn.","8 kap 1-4 §§ miljöbalken, 1 kap 19 och 20 §§ samt \n2 kap 8 § miljötillsyns\nförordningen (2011:13)","Välj avgiftstyp","Välj avgiftsnivå",null,{"$f":"IF(TableData[[#This Row],[Typ av avgift]]=\"Avgiftsnivå\",TableData[[#This Row],[Avgiftsnivå]],IF(TableData[[#This Row],[Typ av avgift]]=\"Timavgift\",\"Timavgift\",IF(TableData[[#This Row],[Typ av avgift]]=\"Fast belopp\",TableData[[#This Row],[Fast belopp/avgift]]&\" kr\",\"\")))","v":""}]
["Tillsyn med anledning av meddelat tillstånd enligt 8 § förordningen (2018:1939) om invasiva främmande arter om länsstyrelsen har överlåtit uppgiften att utöva tillsyn.","Förordning (EU) nr 1143/2014, 1 kap 19 och 20 §§ samt 2 kap 8 § miljötillsynsförord-ningen (2011:13)","Välj avgiftstyp","Välj avgiftsnivå"]
["ÄRENDEN OM VERKSAMHETER SOM ORSAKAR MILJÖSKADOR ENLIGT 10 KAP MILJÖBALKEN"]
["Handläggning av anmälan"]
["Anmälan om att vidta en avhjälpandeåtgärd med anledning av en föroreningsskada.","10 kap 1 § miljöbalken, 28 § förordningen (1998:899) om miljöfarlig verksamhet och hälsoskydd","Välj avgiftstyp","Välj avgiftsnivå",null,{"$f":"IF(TableData[[#This Row],[Typ av avgift]]=\"Avgiftsnivå\",TableData[[#This Row],[Avgiftsnivå]],IF(TableData[[#This Row],[Typ av avgift]]=\"Timavgift\",\"Timavgift\",IF(TableData[[#This Row],[Typ av avgift]]=\"Fast belopp\",TableData[[#This Row],[Fast belopp/avgift]]&\" kr\",\"\")))","v":""}]
["Tillsyn"]
["Underrättelse om upptäckt av en förorening på en fastighet och föroreningen kan medföra skada eller olägenhet för människors hälsa eller miljön.","10 kap 11 § miljöbalken","Välj avgiftstyp","Välj avgiftsnivå",null,{"$f":"IF(TableData[[#This Row],[Typ av avgift]]=\"Avgiftsnivå\",TableData[[#This Row],[Avgiftsnivå]],IF(TableData[[#This Row],[Typ av avgift]]=\"Timavgift\",\"Timavgift\",IF(TableData[[#This Row],[Typ av avgift]]=\"Fast belopp\",TableData[[#This Row],[Fast belopp/avgift]]&\" kr\",\"\")))","v":""}]
["Underrättelse om upptäckt av en överhängande fara för att en verksamhet eller åtgärd medför en allvarlig miljöskada.","10 kap 12 och 14 §§ miljöbalken","Välj avgiftstyp","Välj avgiftsnivå",null,{"$f":"IF(TableData[[#This Row],[Typ av avgift]]=\"Avgiftsnivå\",TableData[[#This Row],[Avgiftsnivå]],IF(TableData[[#This Row],[Typ av avgift]]=\"Timavgift\",\"Timavgift\",IF(TableData[[#This Row],[Typ av avgift]]=\"Fast belopp\",TableData[[#This Row],[Fast belopp/avgift]]&\" kr\",\"\")))","v":""}]
["Underrättelse om upptäckt av att en allvarlig miljöskada har uppstått.","10 kap 13 och 14 §§ miljöbalken","Välj avgiftstyp","Välj avgiftsnivå",null,{"$f":"IF(TableData[[#This Row],[Typ av avgift]]=\"Avgiftsnivå\",TableData[[#This Row],[Avgiftsnivå]],IF(TableData[[#This Row],[Typ av avgift]]=\"Timavgift\",\"Timavgift\",IF(TableData[[#This Row],[Typ av avgift]]=\"Fast belopp\",TableData[[#This Row],[Fast belopp/avgift]]&\" kr\",\"\")))","v":""}]
["Föroreningsskador som inte omfattas av länsstyrelsens ansvar enligt 2 kap. 29 § första stycket 3 miljötillsynsförordningen.","2 kap 31 § p 3 miljö-\ntillsynsförordningen (2011:13), 26 kap 3 § \n3 st miljöbalken","Välj avgiftstyp","Välj avgiftsnivå"]
["Andra miljöskador enligt 10 kap. 1 § miljöbalken, om skadorna har orsakats av en verksamhet eller åtgärd som den kommunala nämnden har tillsynsansvaret för.","2 kap 31 § p 4 miljö-\ntillsynsförordningen (2011:13), 26 kap 3 § \n3 st miljöbalken","Välj avgiftstyp","Välj avgiftsnivå",null,{"$f":"IF(TableData[[#This Row],[Typ av avgift]]=\"Avgiftsnivå\",TableData[[#This Row],[Avgiftsnivå]],IF(TableData[[#This Row],[Typ av avgift]]=\"Timavgift\",\"Timavgift\",IF(TableData[[#This Row],[Typ av avgift]]=\"Fast belopp\",TableData[[#This Row],[Fast belopp/avgift]]&\" kr\",\"\")))","v":""}]
["ÄRENDEN ENLIGT 15 KAP MILJÖBALKEN"]
["Prövning av ansökan"]
["Ansökan om dispens från förbudet att hantera avfall när kommunen ska ansvara för en viss hantering av avfall.","15 kap 25 § p 1 miljöbalken","Välj avgiftstyp","Välj avgiftsnivå",null,{"$f":"IF(TableData[[#This Row],[Typ av avgift]]=\"Avgiftsnivå\",TableData[[#This Row],[Avgiftsnivå]],IF(TableData[[#This Row],[Typ av avgift]]=\"Timavgift\",\"Timavgift\",IF(TableData[[#This Row],[Typ av avgift]]=\"Fast belopp\",TableData[[#This Row],[Fast belopp/avgift]]&\" kr\",\"\")))","v":""}]
["Ansökan om tillstånd från en fastighetsinnehavare att på fastigheten själv återvinna eller bortskaffa avfall även om ett sådant tillstånd inte krävs.","15 kap 25 § p 2 miljöbalken","Välj avgiftstyp","Välj avgiftsnivå",null,{"$f":"IF(TableData[[#This Row],[Typ av avgift]]=\"Avgiftsnivå\",TableData[[#This Row],[Avgiftsnivå]],IF(TableData[[#This Row],[Typ av avgift]]=\"Timavgift\",\"Timavgift\",IF(TableData[[#This Row],[Typ av avgift]]=\"Fast belopp\",TableData[[#This Row],[Fast belopp/avgift]]&\" kr\",\"\")))","v":""}]
["Ansökan om uppehåll i hämtning, gemensam behållare, befrielse från skyldighet att lämna avfall till kommunen enligt kommunens föreskrifter om avfallshantering","9 kap 2 § avfallsförordning (2020:614)","Välj avgiftstyp","Välj avgiftsnivå",null,{"$f":"IF(TableData[[#This Row],[Typ av avgift]]=\"Avgiftsnivå\",TableData[[#This Row],[Avgiftsnivå]],IF(TableData[[#This Row],[Typ av avgift]]=\"Timavgift\",\"Timavgift\",IF(TableData[[#This Row],[Typ av avgift]]=\"Fast belopp\",TableData[[#This Row],[Fast belopp/avgift]]&\" kr\",\"\")))","v":""}]
["Ansökan om dispens avseende bygg- och rivningsavfall från kravet om utsortering i 3 kap. 10 § avfallsförordningen och från kravet att brännbart avfall ska sorteras ut och förvaras skilt från annat avfall i 3 kap. 12 § avfallsförordningen ","3 kap 15 § avfallsförordning (2020:614)","Välj avgiftstyp","Välj avgiftsnivå"]
["Övriga ansökningar","9 kap 1-2 §§ avfallsförordningen (2020:614)","Välj avgiftstyp","Välj avgiftsnivå",null,{"$f":"IF(TableData[[#This Row],[Typ av avgift]]=\"Avgiftsnivå\",TableData[[#This Row],[Avgiftsnivå]],IF(TableData[[#This Row],[Typ av avgift]]=\"Timavgift\",\"Timavgift\",IF(TableData[[#This Row],[Typ av avgift]]=\"Fast belopp\",TableData[[#This Row],[Fast belopp/avgift]]&\" kr\",\"\")))","v":""}]
["Handläggning av anmälan"]
["Anmälan från fastighetsinnehavare eller nyttjanderättshavare att på fastigheten själv kompostera eller på annat sätt behandla annat avfall än trädgårdsavfall som kommunen ansvarar för enligt 15 kap. 20 §MB","5 kap 15 § avfallsförordningen (2020:614)","Välj avgiftstyp","Välj avgiftsnivå",null,{"$f":"IF(TableData[[#This Row],[Typ av avgift]]=\"Avgiftsnivå\",TableData[[#This Row],[Avgiftsnivå]],IF(TableData[[#This Row],[Typ av avgift]]=\"Timavgift\",\"Timavgift\",IF(TableData[[#This Row],[Typ av avgift]]=\"Fast belopp\",TableData[[#This Row],[Fast belopp/avgift]]&\" kr\",\"\")))","v":""}]
["Anmälan från fastighetsinnehavare att enligt kommunens föreskrifter om avfallshantering på fastigheten själv återvinna eller bortskaffa avfall.","9 kap 2 § avfallsförordningen (2020:614)","Välj avgiftstyp","Välj avgiftsnivå",null,{"$f":"IF(TableData[[#This Row],[Typ av avgift]]=\"Avgiftsnivå\",TableData[[#This Row],[Avgiftsnivå]],IF(TableData[[#This Row],[Typ av avgift]]=\"Timavgift\",\"Timavgift\",IF(TableData[[#This Row],[Typ av avgift]]=\"Fast belopp\",TableData[[#This Row],[Fast belopp/avgift]]&\" kr\",\"\")))","v":""}]
["Anmälan enligt kommunens föreskrifter om avfallshantering om uppehåll i hämtning, gemensam behållare, befrielse från hämtning av avfall.","9 kap. 2 § avfallsförordningen (2020:614)","Välj avgiftstyp","Välj avgiftsnivå",null,{"$f":"IF(TableData[[#This Row],[Typ av avgift]]=\"Avgiftsnivå\",TableData[[#This Row],[Avgiftsnivå]],IF(TableData[[#This Row],[Typ av avgift]]=\"Timavgift\",\"Timavgift\",IF(TableData[[#This Row],[Typ av avgift]]=\"Fast belopp\",TableData[[#This Row],[Fast belopp/avgift]]&\" kr\",\"\")))","v":""}]
["Övriga anmälningar enligt kommunens föreskrifter om avfallshantering.","9 kap 1 och 2 §§ avfallsförordningen (2020:614) ","Välj avgiftstyp","Välj avgiftsnivå",null,{"$f":"IF(TableData[[#This Row],[Typ av avgift]]=\"Avgiftsnivå\",TableData[[#This Row],[Avgiftsnivå]],IF(TableData[[#This Row],[Typ av avgift]]=\"Timavgift\",\"Timavgift\",IF(TableData[[#This Row],[Typ av avgift]]=\"Fast belopp\",TableData[[#This Row],[Fast belopp/avgift]]&\" kr\",\"\")))","v":""}]
["Tillsyn"]
["Avfallshantering, som inte omfattas av fast avgift för tillsyn enligt taxebilaga 2.","26 kap 3 § 3 st miljöbalken","Välj avgiftstyp","Välj avgiftsnivå",null,{"$f":"IF(TableData[[#This Row],[Typ av avgift]]=\"Avgiftsnivå\",TableData[[#This Row],[Avgiftsnivå]],IF(TableData[[#This Row],[Typ av avgift]]=\"Timavgift\",\"Timavgift\",IF(TableData[[#This Row],[Typ av avgift]]=\"Fast belopp\",TableData[[#This Row],[Fast belopp/avgift]]&\" kr\",\"\")))","v":""}]
["ÄRENDEN ENLIGT 26 KAP MILJÖBALKEN"]
["Tillsyn"]
["Stängselgenombrott om länsstyrelsen har överlåtit uppgiften att utöva tillsyn.","26 kap 11 § miljö-balken, 1 kap 19 och 20 §§ samt 2 kap 8 § miljötillsynsförord-ningen (2011:13)","Välj avgiftstyp","Välj avgiftsnivå",null,{"$f":"IF(TableData[[#This Row],[Typ av avgift]]=\"Avgiftsnivå\",TableData[[#This Row],[Avgiftsnivå]],IF(TableData[[#This Row],[Typ av avgift]]=\"Timavgift\",\"Timavgift\",IF(TableData[[#This Row],[Typ av avgift]]=\"Fast belopp\",TableData[[#This Row],[Fast belopp/avgift]]&\" kr\",\"\")))","v":""}]

{"sheet":"Avgiftsnivåer","index":3,"n_rows":29,"n_cols":2,"rows_kept":29,"cut":false,"hidden":true,"merged":[[0,0,0,1],[0,2,0,3]]}
["Avgiftsnivåer"]
[]
[]
[{"$f":"Planering!$D$7","v":"Timavgift:"}]
[{"$f":"Planering!$D$8","v":1000}]
[]
["Avgiftsnivå","Timmar"]
[{"$f":"Planering!D14","v":"Avgiftsnivå 1"},{"$f":"Planering!E14","v":2}]
[{"$f":"Planering!D15","v":"Avgiftsnivå 2"},{"$f":"Planering!E15","v":3}]
[{"$f":"Planering!D16","v":"Avgiftsnivå 3"},{"$f":"Planering!E16","v":4}]
[{"$f":"Planering!D17","v":"Avgiftsnivå 4"},{"$f":"Planering!E17","v":"timavgift"}]
[{"$f":"Planering!D18","v":0},{"$f":"Planering!E18","v":0}]
[{"$f":"Planering!D19","v":0},{"$f":"Planering!E19","v":0}]
[{"$f":"Planering!D20","v":0},{"$f":"Planering!E20","v":0}]
[{"$f":"Planering!D21","v":0},{"$f":"Planering!E21","v":0}]
[{"$f":"Planering!D22","v":0},{"$f":"Planering!E22","v":0}]
[{"$f":"Planering!D23","v":0},{"$f":"Planering!E23","v":0}]
[{"$f":"Planering!D24","v":0},{"$f":"Planering!E24","v":0}]
[{"$f":"Planering!D25","v":0},{"$f":"Planering!E25","v":0}]
[{"$f":"Planering!D26","v":0},{"$f":"Planering!E26","v":0}]
[{"$f":"Planering!D27","v":0},{"$f":"Planering!E27","v":0}]
[{"$f":"Planering!D28","v":0},{"$f":"Planering!E28","v":0}]
[{"$f":"Planering!D29","v":0},{"$f":"Planering!E29","v":0}]
[{"$f":"Planering!D30","v":0},{"$f":"Planering!E30","v":0}]
[{"$f":"Planering!D31","v":0},{"$f":"Planering!E31","v":0}]
[{"$f":"Planering!D32","v":0},{"$f":"Planering!E32","v":0}]
[{"$f":"Planering!D33","v":0},{"$f":"Planering!E33","v":0}]
[{"$f":"Planering!D34","v":0},{"$f":"Planering!E34","v":0}]
[{"$f":"Planering!D35","v":0},{"$f":"Planering!E35","v":0}]

{"sheet":"Taxebilaga 1","index":4,"n_rows":147,"n_cols":3,"rows_kept":147,"cut":false,"hidden":true,"merged":[[0,0,0,1]]}
["Taxebilaga 1"]
[]
[]
["Beskrivning","Lagrum","Avgift"]
["AVGIFTER FÖR MILJÖFARLIG VERKSAMHET OCH HÄLSOSKYDD"]
["Prövning av ansökan"]
["Ansökan om tillstånd till inrättande av en avloppsanordning som en eller flera vattentoaletter ska anslutas till, och som inte omfattas av fast avgift enligt taxebilaga 2.","13 § förordningen (1998:899) om miljöfarlig verksamhet och hälsoskydd"]
["Ansökan om tillstånd till anslutande av en vattentoalett till en befintlig avloppsanordning, och som inte omfattas av fast avgift enligt taxebilaga 2.","13 § förordningen (1998:899) om miljöfarlig verksamhet och hälsoskydd",""]
["Ansökan om tillstånd till inrättande av annan avloppsanordning än med vattentoalett enligt vad kommunen har föreskrivit för att skydda människors hälsa eller miljön, och som inte omfattas av fast avgift enligt taxebilaga 2.","13 § förordningen (1998:899) om miljöfarlig verksamhet och hälsoskydd",""]
["Ansökan om tillstånd till inrättande av värmepumpsanläggning för utvinning av värme ur mark, ytvatten, eller grundvatten enligt vad kommunen har föreskrivit för att skydda människors hälsa eller miljön och som inte omfattas av fast avgift enligt taxebilaga 2.","17 § förordningen  (1998:899) om miljöfarlig verksamhet och hälsoskydd",""]
["Ansökan om tillstånd till inrättande av luftvärmepump enligt vad kommunen har föreskrivit för att förhindra olägenheter för människors hälsa.","40 § förordningen (1998:899) om miljöfarlig verksamhet och hälsoskydd, 9 kap 12 § miljöbalken",""]
["Ansökan om tillstånd till hållande av vissa djur inom område med detaljplan eller områdesbestämmelser enligt vad kommunen har föreskrivit för att förhindra olägenheter för människors hälsa.","39 § förordningen (1998:899) om miljöfarlig verksamhet och hälsoskydd",""]
["Ansökan om tillstånd till spridning av naturligt gödsel, slam och annan orenlighet inom område med detaljplan eller intill sådant område enligt vad kommunen har föreskrivit för att förhindra olägenheter för människors hälsa.","40 och 42 §§ förordningen (1998:899) om miljöfarlig verksamhet och hälsoskydd, 9 kap 12 § miljöbalken",""]
["Ansökan om tillstånd eller dispens i andra frågor enligt vad kommunen har föreskrivit för att förhindra olägenheter för människors hälsa.","40 § förordningen (1998:899) om miljöfarlig verksamhet och hälsoskydd, 9 kap 12 § miljöbalken",""]
["Handläggning av anmälan",null," "]
["Anmälan om miljöfarlig verksamhet.","9 kap 6 §, 1 kap 10 § miljöprövnings-förordningen (2013:251)",""]
["Anmälan om ändring av miljöfarlig verksamhet, och som inte omfattas av fast avgift enligt taxebilaga 2.","1 kap 11 § miljöprövnings-förordningen (2013:251)",""]
["Anmälan om inrättande av en avloppsanordning utan vattentoalett, och som inte omfattas av fast avgift enligt taxebilaga 2.","13 § förordningen (1998:899) om miljöfarlig verksamhet och hälsoskydd",""]
["Anmälan om ändring av en avloppsanordning och som inte omfattas av fast avgift enligt taxebilaga 2.","14 § förordningen (1998:899) om miljöfarlig verksamhet och hälsoskydd",""]
["Anmälan om inrättande av värmepumpsanläggning för utvinning av värme ur mark, ytvatten eller grundvatten och som inte omfattas av fast avgift enligt taxebilaga 2.","17 § förordningen (1998:899) om miljöfarlig verksamhet och hälsoskydd",""]
["Anmälan om inrättande av luftvärmepump enligt vad kommunen har föreskrivit för att förhindra olägenheter för människors hälsa.","40 § förordningen (1998:899) om miljöfarlig verksamhet och hälsoskydd, 9 kap 12 § miljöbalken",""]
["Anmälan om anläggande av gödselstad eller annan upplagsplats för djurspillning inom ett område med detaljplan eller intill sådant område enligt vad kommunen har föreskrivit för att förhindra olägenheter för människors hälsa.","37 och 42 §§ förordningen (1998:899) om miljöfarlig verksamhet och hälsoskydd",""]
["Anmälan om spridning av naturligt gödsel, slam och annan orenlighet inom område med detaljplan eller intill sådant område enligt vad kommunen har föreskrivit för att förhindra olägenheter för människors hälsa.","40 och 42 § § förordningen (1998:899) om miljöfarlig verksamhet och hälsoskydd, 9 kap 12 § miljöbalken",""]
["Anmälan i andra frågor enligt vad kommunen har föreskrivit för att förhindra olägenheter för människors hälsa.","40 § förordningen (1998:899) om miljöfarlig verksamhet och hälsoskydd, 9 kap 12 § miljöbalken",""]
["Anmälan om att driva eller arrangera anmälningspliktig hälsoskyddsverksamhet där allmänheten yrkesmässigt erbjuds hygieniska behandlingar som innebär risk för blodsmitta eller annan smitta på grund av användningen av skalpeller, akupunkturnålar, piercningsverktyg eller andra liknande skärande eller stickande verktyg.\nVerksamhet som omfattas av lagen (2021:363) om estetiska kirurgiska ingrepp och estetiska injektionsbehandlingar är inte anmälningspliktig.","38 § förordningen (1998:899) om miljöfarlig verksamhet och hälsoskydd",""]
["Anmälan om att driva eller arrangera anmälningspliktig hälsoskyddsverksamhet med bassängbad för allmänheten, eller som på annat sätt används av många människor.","38 § förordningen (1998:899) om miljöfarlig verksamhet och hälsoskydd",""]
["Anmälan om att driva eller arrangera anmälningspliktig hälsoskyddsverksamhet som utgörs av förskola, öppen förskola, fritidshem, öppen fritidsverksamhet, förskoleklass, grundskola, grundsärskola, gymnasieskola, gymnasiesärskola, specialskola, sameskola eller internationell skola.","38 § förordningen (1998:899) om miljöfarlig verksamhet och hälsoskydd",""]
["Tillsyn"]
["Olägenheter från joniserande och icke-joniserande strålning från verksamheter som är tillståndspliktiga enligt miljöprövningsförordningen (2013:251) och är kärntekniska verksamheter enligt lagen (1984:3) om kärnteknisk verksamhet eller verksamheter med strålning enligt strålskyddslagen (1988:220) om Strålsäkerhetsmyndigheten har överlåtit tillsynen till kommunen.","1 kap 19 och 20 §§ samt 2 kap 26 § miljötillsynsförordningen (2011:13)",""]
["Annan miljöfarlig verksamhet, som inte omfattas av fast avgift för tillsyn enligt taxebilaga 2 eller timavgift enligt taxebilaga 3.","26 kap 3 § 3 st miljöbalken, \n2 kap 31 § p 1 miljötillsynsförordningen",""]
["Byggnader, lokaler och anläggningar som kräver särskild uppmärksamhet och som som inte omfattas av  avgift för tillsyn enligt taxebilaga 2 eller taxebilaga 3;\n1. byggnader som innehåller en eller flera bostäder och tillhörande utrymmen,\n2. lokaler för undervisning, vård eller annat omhändertagande,\n3. samlingslokaler där många människor brukar samlas,\n4. hotell, pensionat och liknande lokaler där allmänheten yrkesmässigt erbjuds tillfällig bostad,\n5. idrottsanläggningar, campinganläggningar, badanläggningar, strandbad och andra liknande anläggningar som är upplåtna för allmänheten eller som annars utnyttjas av många människor,\n6. lokaler där allmänheten yrkesmässigt erbjuds hygienisk behandling  och där verksamheten inte endast omfattar estetiska kirurgiska ingrepp och estetiska injektionsbehandlingar ,\n7. lokaler för förvaring av djur.","26 kap 3 § 3 st miljöbalken, \n45 § förordningen (1998:899) om miljöfarlig verksamhet och hälsoskydd",""]
["Radon i bostäder och lokaler för allmänna ändamål.","26 kap 3 § 3 st miljöbalken",""]
["Annan hälsoskyddsverksamhet, som inte omfattas av fast avgift för tillsyn enligt taxebilaga 2.","26 kap 3 § 3 st miljöbalken",""]
["AVGIFT FÖR VATTENVERKSAMHET"]
["Prövning av ansökan"]
["Ansökan  enligt vad kommunen har föreskrivit för att förhindra olägenheter för människors hälsa om tillstånd till inrättande och användande av ny anläggning för grundvattentäkt och denna inte kräver tillstånd enligt 11 kap miljöbalken. ","9 kap 10 § 2 st miljöbalken",""]
["Handläggning av anmälan"]
["Anmälan om vattenverksamhet där länsstyrelsen har överlåtit uppgiften att utöva tillsyn.","11 kap 9b § 2 st miljöbalken, 19 § förordningen (1998:1388) om vattenverksamheter,  \n1 kap 19 och 20 §§ samt 2 kap 29 § miljötillsynsförordningen (2011:13)",""]
["Anmälan enligt vad kommunen har föreskrivit för att förhindra olägenheter för människors hälsa om inrättande och användande av ny anläggning för grundvattentäkt och denna inte kräver tillstånd enligt 11 kap miljöbalken.","9 kap 10 § 2 st miljöbalken",""]
["Anmälan enligt vad kommunen har föreskrivit för att förhindra olägenheter för människors hälsa om användande av befintlig anläggning för grundvattentäkt.","9 kap 10 § 2 st miljöbalken ",""]
["Tillsyn"]
["Anläggning för grundvattentäkt som kräver tillstånd eller anmälan enligt vad kommunen har föreskrivit för att förhindra olägenheter för människors hälsa och som inte kräver tillstånd enligt 11 kap miljöbalken. ","9 kap 10 § 2 st miljöbalken, 2 kap 31 § p 2 miljötillsynsförordningen (2011:13)",""]
["Övrig vattenverksamhet där länsstyrelsen har överlåtit uppgiften att utöva tillsyn."," 1 kap 19 och 20 §§ samt 2 kap 29 § miljötillsynsförordningen (2011:13), 26 kap 10 § miljöbalken",""]
["AVGIFT FÖR KEMISKA PRODUKTER OCH BIOTEKNISKA ORGANISMER "]
["LAGRING AV BRANDFARLIGA VÄTSKOR"]
["Tillsyn"]
["Information innan installation påbörjas eller hantering inleds av  brandfarliga vätskor eller spillolja i cistern ovan eller i mark som rymmer mer än 1 m3 vätska (inom vattenskyddsområde hantering av mer än 250 liter brandfarliga vätskor eller spillolja) med tillhörande rörledningar. (Gäller inte om hanteringen är tillståndspliktig enligt miljöprövningsförordningen (2013:251) eller prövas inom ramen för en annan tillståndspliktig verksamhet enligt miljöbalken.) ","1 kap 1 § och 3 kap 1 § 1 st Naturvårdsverkets föreskrifter om skydd mot mark- och vatten-förorening vid hantering av\nbrandfarliga vätskor och spilloljor (NFS 2017:5), 2 kap 31 och 32 §§ miljötillsynsför-ordningen (2011:13)",""]
["Information om cistern som tagits ur bruk. (Gäller inte om hanteringen är tillståndspliktig enligt miljöprövningsförordningen (2013:251) eller prövas inom ramen för en annan tillståndspliktig verksamhet enligt miljöbalken.)","1 kap 1 § och 6 kap 1 § Naturvårdsverkets föreskrifter om skydd mot mark- och vattenförorening vid hantering av\nbrandfarliga vätskor och spilloljor (NFS 2017:5), 2 kap 31 och 32 §§ miljötillsyns-förordningen (2011:13)",""]
["Kopior på rapporter från kontroller, inklusive periodiska kontroller, av cisterner och rörledningar. (Gäller inte om hanteringen är tillståndspliktig enligt miljöprövningsförordningen (2013:251) eller prövas inom ramen för en annan tillståndspliktig verksamhet enligt miljöbalken.) ","1 kap 1 § och 3 kap 1 § 2 st Naturvårdsverkets föreskrifter om skydd mot mark- och vatten-förorening vid hantering av\nbrandfarliga vätskor och spilloljor (NFS 2017:5), 2 kap 31 och 32 §§ miljötillsyns-förordningen (2011:13)",""]
["Övrig tillsyn av hantering av brandfarliga vätskor och spillolja. (Gäller inte om hanteringen är tillståndspliktig enligt miljöprövningsförordningen (2013:251) eller prövas inom ramen för en annan tillståndspliktig verksamhet enligt miljöbalken.) ","1 kap 1 § Naturvårdsverkets föreskrifter om skydd mot mark- och vatten-förorening vid hantering av\nbrandfarliga vätskor och spilloljor (NFS 2017:5), 26 kap 3 § miljöbalken, 2 kap 31 och 32 §§ miljö-tillsynsförordningen (2011:13)",""]
["FLUORERADE VÄXTHUSGASER "]
["Tillsyn"]
["Underrättelse och samråd innan installation eller konvertering sker av sådan utrustning som innehåller 14 ton koldioxidekvivalenter f-gas eller mer, om valet av utrustning och köldmedium inte behandlas inom ramen för en ansökan om tillstånd eller en anmälan enligt 9 kap miljöbalken.","14 § förordning (2016:1128) om fluorerade växthus-gaser, 2 kap 31 och 32 §§ miljötillsyns-förordningen (2011:13)",""]
["Rapport om det under någon del av ett kalenderår finns minst 14 ton koldioxidekvivalenter i en stationär anläggning eller i en mobil utrustning som omfattas av läckagekontroll enligt 11 § eller enligt artikel 3.3 andra stycket och 4.1-4.3 i EU-förordningen om f-gaser. ","15 § förordning (2016:1128) om fluorerade växthusgaser, 2 kap 31 och 32 §§ miljötillsyns-förordningen (2011:13)",""]
["Övrig tillsyn av fluorerade växthusgaser, som inte omfattas av fast avgift för tillsyn enligt taxebilaga 2.","2 kap 31 och 32 §§ miljötillsynsför-ordningen (2011:13)",""]
["OZONNEDBRYTANDE ÄMNEN "]
["Tillsyn"]
["Utrustning i motorfordon, flyg och tåg som innehåller kontrollerade ämnen.","Förordning (EU) nr 517/2014, förordning (EG) nr 1005/2009, \n2 kap 31 § p 6 miljötillsyns-förordningen (2011:13)",""]
["Verksamhet där ozonnedbrytande ämne används för laboratorie- och analysarbeten  som betraktas som viktiga enligt bilagan till Kommissionens förordning (EU) nr 291/2011 , som inte omfattas av fast avgift för tillsyn enligt taxebilaga 2.","Förordning (EG) 1005/2009, förordning (EG) nr 291/2011, \n2 kap 31 § p 5 miljötillsyns-förordningen (2011:13)",""]
["VÄXTSKYDDSMEDEL"]
["Prövning av ansökan"]
["Ansökan om särskilt tillstånd till yrkesmässig användning av växtskyddsmedel\n1. inom idrotts- och fritidsanläggningar,\n2. vid planerings- och anläggningsarbeten,\n3. på vägområden samt grusytor och andra mycket genomsläppliga ytor, och\n4. på ytor av asfalt, betong eller andra hårdgjorda material.","2 kap 40 och 40 a §§ förordningen (2014:425) om bekämpningsmedel ",""]
["Ansökan om tillstånd att yrkesmässigt använda växtskyddsmedel utomhus inom ett vattenskyddsområde som har inrättats före den 1 januari 2018 eller där föreskrifterna inte har ändrats efter den 1 januari 2018.","6 kap 1 och 2 §§ Naturvårdsverkets föreskrifter om spridning och viss övrig hantering av växtskyddsmedel (NFS 2015:2), 2 kap 36 § 2 st förordningen(2014:425) om bekämpningsmedel och 7 kap 22 § miljöbalken",""]
["Ansökan om dispens från förbudet att använda växtskyddsmedel \n1. på ängs- eller betesmark som inte är lämplig att plöja men som kan användas till slåtter eller bete,\n2. på skolgårdar eller gårdar till förskolor eller på lekplatser som allmänheten har tillträde till,\n3. i parker eller trädgårdar eller andra områden som i första hand är avsedda att vara rekreationsområden som allmänheten har tillträde till,\n4. inom koloniträdgårdsområden eller i växthus som inte används yrkesmässigt,\n5. på tomtmark för bostadshus eller på krukväxter i hemträdgårdsmiljö, eller\n6. på växter inomhus utom i produktionslokaler, lagerlokaler och liknande lokaler.","2 kap 37 och 39 §§ förordningen (2014:425) om bekämpningsmedel ",""]
["Handläggning av anmälan"]
["Anmälan om yrkesmässig användning av växtskyddsmedel.","2 kap 41 och 41a §§ förordningen (2014:425) om bekämpningsmedel ",""]
["Tillsyn"]
["Underrättelse vid olyckor då en större mängd växtskyddsmedel läckt ut eller kan befaras läcka ut.","9 kap 1 § Naturvårdsverkets föreskrifter om spridning och viss övrig hantering av växtskyddsmedel (NFS 2015:2), \n2 kap 31 § p 5 och \n2 kap 32 § 1 st p 2b miljötillsyns-förordningen (2011:13) ...",""]
["Underrättelse om vattentäkt, grundvatten eller en sjö eller ett vattendrag befaras bli förorenat av växtskyddsmedel.","9 kap 3 § Naturvårdsverkets föreskrifter om spridning och viss övrig hantering av växtskyddsmedel (NFS 2015:2),  \n2 kap 31 § p 5 och \n2 kap 32 § 1 st p 2b miljötillsyns-förordningen (2011:13) ...",""]
["Övrig tillsyn av växtskyddsmedel, som inte omfattas av fast avgift för tillsyn enligt taxebilaga 2.","2 kap 31 § p 5 miljö-tillsynsförordningen (2011:13)",""]
["BIOCIDPRODUKTER"]
["Prövning av ansökan"]
["Ansökan om undantag från bestämmelserna om information och underrättelse i 4 kap 1-3 §§ Naturvårdsverkets föreskrifter\nom spridning av vissa biocidprodukter (NFS 2015:3). Gäller inte biocidprodukter som innehåller nematoder, insekter eller spindeldjur.","1 kap 1 § och 4 kap 4 § Naturvårdsverkets föreskrifter om spridning av vissa biocidprodukter (NFS 2015:3)",""]
["Tillsyn"]
["Underrättelse i samband med spridning av biocidprodukt  på en plats som allmänheten har tillträde till, som inte omfattas av fast avgift för tillsyn enligt taxebilaga 2. Gäller inte biocidprodukter som innehåller nematoder, insekter eller spindeldjur.","1 kap 1 § och 4 kap 2 § Naturvårdsverkets föreskrifter\nom spridning av vissa biocidprodukter (NFS 2015:3),  \n2 kap 31 § p 5 miljö-tillsynsförordningen (2011:13)",""]
["Övrig tillsyn av biocidprodukter, som inte omfattas av fast avgift för tillsyn enligt taxebilaga 2. Gäller inte biocidprodukter som innehåller nematoder, insekter eller spindeldjur.","Naturvårdsverkets föreskrifter\nom spridning av vissa biocidprodukter (NFS 2015:3), \n2 kap 31 § p 5 miljötillsynsförordningen (2011:13)",""]
["PCB"]
["Prövning av ansökan"]
["Anökan om dispens från kravet om avlägsnande av PCB-produkt i byggnader och anläggningar och som inte omfattas av fast avgift för tillsyn enligt taxebilaga 2.","17 b § förordningen (2007:19) om PCB m.m.",""]
["Handläggning av anmälan"]
["Anmälan om avlägsnande av fogmassa eller halkskyddad golvmassa enligt 17, 17 a eller 17 b § förordning (2007:19) om PCB m.m. och som inte omfattas av fast avgift för tillsyn enligt taxebilaga 2","18 § förordningen (2007:19) om PCB m.m.",""]
["Tillsyn"]
["Övrig tillsyn av PCB-varor och PCB-produkter som inte omfattas av fast avgift för tillsyn enligt taxebilaga 2.","Förordningen  (2007:19) om PCB m.m., 26 kap 3 § 3 st miljöbalken, \n2 kap 31 § p 5 miljö-tillsynsförordningen (2011:13)",""]
["KOSMETISKA PRODUKTER"]
["Tillsyn"]
["Kosmetiska produkter, de uppgifter som enligt artiklarna 24, 25.1, 25.5 första stycket, 26, 27.1 och 27.5 i förordning (EG) nr 1223/2009 ska skötas av behörig myndighet, samt rådgöra med Läkemedelsverket innan åtgärder vidtas enligt artikel 27.1 i förordningen. ","Förordning (EG) nr 1223/2009, 2 kap 34 § miljötillsyns-förordningen (2011:13)",""]
["Marknadskontroll i fråga om kosmetiska produkter med fullgörande av de uppgifter som anges i 1 kap 5 § 3 st p 1 i miljötillsynsförordningen genom att inrätta lämpliga förfaranden enligt artikel 18.2  i förordning (EG) nr 765/2008 för att\na) följa upp klagomål och rapporter om risker relaterade till produkter som omfattas av harmoniserad gemenskapslagstiftning,\nb) bevaka olyckor och hälsoskador som dessa produkter misstänks ha orsakat,\nc) kontrollera att korrigerande åtgärder har vidtagits,\nd) följa upp vetenskaplig och teknisk kunskap i säkerhetsfrågor.","Förordning (EG) nr 1223/2009, 2 kap 35 § 1 st miljötillsynsförordningen (2011:13),  artikel 18.2 förordning (EG) nr 765/2008"]
["ÖVRIGT AVSEENDE KEMISKA PRODUKTER"]
["Tillsyn"]
["Primärleverantörers hantering av kemiska produkter, biotekniska organismer och varor som inte innebär utsläppande på marknaden, som inte omfattas av fast avgift för tillsyn enligt taxebilaga 2.","2 kap 32 § miljö-tillsynsförordningen (2011:13)",""]
["Hantering av kemiska produkter, biotekniska organismer och varor i andra verksamheter än miljöfarliga verksamheter enligt 9 kap miljöbalken, utom den tillsyn som Kemikalieinspektionen utövar över primärleverantörers utsläppande på marknaden","2 kap 31 § p 5 miljö-tillsynsförordningen (2011:13)",""]
["Övrig tillsyn av kemiska produkter, som inte omfattas av fast avgift för tillsyn enligt taxebilaga 2.","1 kap 19 och 20 §§, \n2 kap 32 § samt 2 kap 19 § p 7-9, p 11-14, \np 16, p 17, p 19  miljö-tillsynsförordningen (2011:13), 26 kap 3 § \n3 st miljöbalken ",""]
["AVGIFT FÖR VISS ÖVRIG VERKSAMHET"]
["ÄRENDEN OM ALLMÄNNA HÄNSYNSREGLER ENLIGT 2 KAP MILJÖBALKEN"]
["Tillsyn"]
["Hushållning med energi samt användning av förnyelsebara energikällor, i verksamhet eller vid vidtagande av åtgärd som inte omfattas av fast avgift för tillsyn enligt taxebilaga 2.","2 kap 5 § samt 26 kap \n3 § 3 st miljöbalken",""]
["I verksamhet eller vid vidtagande av åtgärd som inte omfattas av fast avgift i taxebilaga 2, utnyttja möjligheterna att \n1. minska mängden avfall, \n2. minska mängden skadliga ämnen i material och produkter, \n3. minska de negativa effekterna av avfall, och\n4. återvinna avfall.","2 kap 5 § samt 26 kap \n3 § 3 st miljöbalken",""]
["Övrig tillsyn över att miljöbalkens hänsynsregler efterlevs, i verksamhet eller vid vidtagande av åtgärd som inte omfattas av fast avgift för tillsyn enligt taxebilaga 2.","2 kap 2-4 §§ miljöbalken 26 kap 3 § 3 st miljöbalken",""]
["ÄRENDEN ENLIGT 7 OCH 12 KAP MILJÖBALKEN"]
["Prövning av ansökan"]
["Ansökan om dispens från strandskyddsföreskrifter","7 kap 18 b § miljöbalken",""]
["Ansökan om tillstånd till verksamhet eller åtgärd som inte får utföras utan tillstånd enligt föreskrifter för natur- eller kulturreservat eller vattenskyddsområde.","Gällande föreskrifter",""]
["Ansökan om tillstånd till åtgärd som är förbjuden för att den strider mot syftet med det tilltänkta skyddet  av ett område eller föremål som omfattas av ett interimistiskt beslut meddelat av kommunen enligt 7 kap 24 §. ","7 kap 24 § miljöbalken",""]
["Ansökan om dispens eller undantag från föreskrifter för natur- eller kulturreservat, naturminne, djur- och växtskyddsområde eller vattenskyddsområde. ","Gällande föreskrifter, 7 kap 7 § miljöbalken, 9 §  förordning (1998:1252) om områdesskydd enligt miljöbalken m.m.",""]
["Ansökan om nya eller ändrade villkor i ett beslut om tillstånd eller dispens avseende natur- eller kulturreservat, naturminne, djur- och växtskyddsområde eller vattenskyddsområde.","Gällande föreskrifter, 7 kap 7 § miljöbalken, 9 §  förordning (1998:1252) om områdesskydd enligt miljöbalken m.m.",""]
["Ansökan om dispens från förbudet att bedriva en verksamhet eller vidta en åtgärd som kan skada naturmiljön i ett biotopskyddsområde. ","7 kap 11 § 2 st miljöbalken, 1 kap 19 och 20 §§ samt 2 kap \n8 § miljötillsyns-förordningen (2011:13)",""]
["Ansökan om undantag från bestämmelserna i 23 §, 23 a §, 23 b §, 24 § p 2 och p 3, 25 §, 26 §, 26 a §, 26 c §, 28 a §, 28 b § och 28 d § i jordbruksverkets föreskrifter SJVFS 2015:21 om omständighet har uppstått som verksamhetsutövaren varken\nkunnat eller borde ha förutsett och inte heller kunnat påverka och som inte omfattas av fast avgift för tillsyn enligt taxebilaga 2","36 § föreskrifter om ändring i Statens jordbruksverks föreskrifter och allmänna råd (SJVFS 2004:62) om miljöhänsyn i jordbruket vad avser växtnäring (SJVFS 2015:21), 1 kap 19 och 20 §§ samt 2 kap 8 § p 7 miljö-tillsynsförordningen (2011:13)"]
["Handläggning av anmälan"]
["Anmälan om en verksamhet eller åtgärd inom natur- eller kulturreservat eller vattenskyddsområde som kräver anmälan enligt föreskrifter meddelade för natur- eller kulturreservat eller vattenskyddsområde.","Gällande föreskrifter",""]
["Anmälan för samråd av en åtgärd som inte omfattas av tillstånds- eller anmälningsplikt enligt andra bestämmelser i miljöbalken och som kan komma att väsentligt ändra naturmiljön.","12 kap 6 § miljbalken",""]
["Tillsyn"]
["Naturreservat,  kulturreservat, naturminnen, biotopskyddsområden, vattenskyddsområden som kommunen har beslutat om, djur- och växtskyddsområden som kommunen har meddelat föreskrifter om, område eller föremål som omfattas av ett interimistiskt beslut meddelat av kommunen enligt 7 kap 24 § miljöbalken, strandskydd utom det som länsstyrelsen har tillsyn över när det gäller väg- och järnvägsanläggningar. ","2 kap 9 § miljö-tillsynsförordningen",""]
["Verksamhet som berörs av föreskrifter i fråga om\n1. begränsningar av antalet djur i ett jordbruk,\n2. försiktighetsmått för gödselhanteringen, och\n3. växtodlingen\noch som inte omfattas av fast avgift för tillsyn enligt taxebilaga 2.","12 kap 10 § miljö-balken,  2 kap 32 § miljötillsyns-\nförordningen (2011:13)",""]
["Tillsyn  av skyddade områden enligt 7 kap miljöbalken som har beslutats av länsstyrelsen, om länsstyrelsen har överlåtit uppgiften att utöva tillsyn. ","1 kap 19 och 20 §§ samt 2 kap 8 §  miljötillsynsförord-ningen (2011:13)",""]
["Skötsel av jordbruksmark och annan markanvändning vid jordbruket enligt 7, 8 och 12 kap. miljöbalken, om länsstyrelsen har överlåtit uppgiften att utöva tillsyn, som inte omfattas av fast avgift för tillsyn enligt taxebilaga 2.","1 kap 19 och 20 §§ samt 2 kap 8 § p 7 miljö-tillsynsförordningen (2011:13)",""]
["Vilthägn, om länsstyrelsen har överlåtit uppgiften att utöva tillsyn.","12 kap 11 § miljöbalken, 1 kap 19 och 20 §§ samt \n2 kap 8 § p 10 miljötillsyns-förordningen  (2011:13)",""]
["Övrig tillsyn av skötsel av jordbruksmark och  annan markanvändning i jordbruket och som inte omfattas av fast avgift för tillsyn enligt taxebilaga 2.","2 kap 8 § p 7  samt \n1 kap 19 och 20 §§ miljötillsyns-förordningen (2011:13) eller 26 kap 3 § 3 st miljöbalken",""]
["ÄRENDEN ENLIGT 8 KAP MILJÖBALKEN"]
["Tillsyn"]
["Skydd för biologisk mångfald om länsstyrelsen har överlåtit uppgiften att utöva tillsyn.","8 kap 1-4 §§ miljöbalken, 1 kap 19 och 20 §§ samt \n2 kap 8 § miljötillsyns\nförordningen (2011:13)",""]
["Tillsyn med anledning av meddelat tillstånd enligt 8 § förordningen (2018:1939) om invasiva främmande arter om länsstyrelsen har överlåtit uppgiften att utöva tillsyn.","Förordning (EU) nr 1143/2014, 1 kap 19 och 20 §§ samt 2 kap 8 § miljötillsynsförord-ningen (2011:13)"]
["ÄRENDEN OM VERKSAMHETER SOM ORSAKAR MILJÖSKADOR ENLIGT 10 KAP MILJÖBALKEN"]
["Handläggning av anmälan"]
["Anmälan om att vidta en avhjälpandeåtgärd med anledning av en föroreningsskada.","10 kap 1 § miljöbalken, 28 § förordningen (1998:899) om miljöfarlig verksamhet och hälsoskydd",""]
["Tillsyn"]
["Underrättelse om upptäckt av en förorening på en fastighet och föroreningen kan medföra skada eller olägenhet för människors hälsa eller miljön.","10 kap 11 § miljöbalken",""]
["Underrättelse om upptäckt av en överhängande fara för att en verksamhet eller åtgärd medför en allvarlig miljöskada.","10 kap 12 och 14 §§ miljöbalken",""]
["Underrättelse om upptäckt av att en allvarlig miljöskada har uppstått.","10 kap 13 och 14 §§ miljöbalken",""]
["Föroreningsskador som inte omfattas av länsstyrelsens ansvar enligt 2 kap. 29 § första stycket 3 miljötillsynsförordningen.","2 kap 31 § p 3 miljö-\ntillsynsförordningen (2011:13), 26 kap 3 § \n3 st miljöbalken"]
["Andra miljöskador enligt 10 kap. 1 § miljöbalken, om skadorna har orsakats av en verksamhet eller åtgärd som den kommunala nämnden har tillsynsansvaret för.","2 kap 31 § p 4 miljö-\ntillsynsförordningen (2011:13), 26 kap 3 § \n3 st miljöbalken",""]
["ÄRENDEN ENLIGT 15 KAP MILJÖBALKEN"]
["Prövning av ansökan"]
["Ansökan om dispens från förbudet att hantera avfall när kommunen ska ansvara för en viss hantering av avfall.","15 kap 25 § p 1 miljöbalken",""]
["Ansökan om tillstånd från en fastighetsinnehavare att på fastigheten själv återvinna eller bortskaffa avfall även om ett sådant tillstånd inte krävs.","15 kap 25 § p 2 miljöbalken",""]
["Ansökan om uppehåll i hämtning, gemensam behållare, befrielse från skyldighet att lämna avfall till kommunen enligt kommunens föreskrifter om avfallshantering","9 kap 2 § avfallsförordning (2020:614)",""]
["Ansökan om dispens avseende bygg- och rivningsavfall från kravet om utsortering i 3 kap. 10 § avfallsförordningen och från kravet att brännbart avfall ska sorteras ut och förvaras skilt från annat avfall i 3 kap. 12 § avfallsförordningen ","3 kap 15 § avfallsförordning (2020:614)"]
["Övriga ansökningar","9 kap 1-2 §§ avfallsförordningen (2020:614)",""]
["Handläggning av anmälan"]
["Anmälan från fastighetsinnehavare eller nyttjanderättshavare att på fastigheten själv kompostera eller på annat sätt behandla annat avfall än trädgårdsavfall som kommunen ansvarar för enligt 15 kap. 20 §MB","5 kap 15 § avfallsförordningen (2020:614)",""]
["Anmälan från fastighetsinnehavare att enligt kommunens föreskrifter om avfallshantering på fastigheten själv återvinna eller bortskaffa avfall.","9 kap 2 § avfallsförordningen (2020:614)",""]
["Anmälan enligt kommunens föreskrifter om avfallshantering om uppehåll i hämtning, gemensam behållare, befrielse från hämtning av avfall.","9 kap. 2 § avfallsförordningen (2020:614)",""]
["Övriga anmälningar enligt kommunens föreskrifter om avfallshantering.","9 kap 1 och 2 §§ avfallsförordningen (2020:614) ",""]
["Tillsyn"]
["Avfallshantering, som inte omfattas av fast avgift för tillsyn enligt taxebilaga 2.","26 kap 3 § 3 st miljöbalken",""]
["ÄRENDEN ENLIGT 26 KAP MILJÖBALKEN"]
["Tillsyn"]
["Stängselgenombrott om länsstyrelsen har överlåtit uppgiften att utöva tillsyn.","26 kap 11 § miljö-balken, 1 kap 19 och 20 §§ samt 2 kap 8 § miljötillsynsförord-ningen (2011:13)",""]

{"sheet":"Admin","index":5,"n_rows":9,"n_cols":5,"rows_kept":9,"cut":false,"hidden":true,"merged":[]}
[]
[]
[]
[null,"rngCritTaxa1",null,"rngAvgiftstyp","rngAvgiftsniva"]
[null,"Beskrivning",null,"Välj avgiftstyp","Välj avgiftsnivå"]
[null,"<>",null,"Avgiftsnivå","Avgiftsnivå 1"]
[null,null,null,"Timavgift","Avgiftsnivå 2"]
[null,null,null,"Fast belopp","Avgiftsnivå 3"]
[null,null,null,"Fast avgift","Avgiftsnivå 4"]